Workbook

Sheet Introduction
A1: Introduction
A2: This workbook has been developed from the techniques used in JRF research report ‘The Cost of the Cuts: The Impact on Local Government and Poorer Communities’. This research sought to explore the impact of cuts to council expenditure on council services and the people that rely on them. The aim of this work book is to give councils a picture of the social impact of their plans that will aid discussion between colleagues across different roles such as policy, strategy, research and finance. The main element of this work book is a classification of specific council services according to which social groups tend to use which services more or less. This 'Standard' classification allows councils to assess each of their savings proposals in terms of whether they fall on a service which is 'pro-poor', 'pro-rich' or ‘neutral’ in terms of its use and benefit. (The 'How to' guide which accompanies this work book gives more detail on how this classification was derived). We have also provided space in the work book for you to classify services in ways which reflect local views about patterns of use and benefit (the 'Alternative' classification). We do suggest that you start the process using the 'Standard' classification before experimenting with alternatives. Before you get started on using the work book, you will need to have detailed information on how much your council plans to save on specific services for a given year. And you will need to have this information organised by the heading used as part of the Scottish Local Government Finance Statistics expenditure analysis. A finance officer should be able to provide this for you. The workbook has been set up with the data necessary to allow you to see how these savings relate to overall expenditure on a given service, as well as how savings impact on services on the pro-poor, neutral and pro-rich spectrum. The expenditure data is the SLGF Service Analysis of Budget Estimates 2018/19.
A4: About this workbook:
A5: Savings & Service Classification: This sheet lists all services by SLGF sub-heading. Each service sub-heading has been allocated one of seven categories based on the Standard service classification (see table below). This is the page where you enter savings for each service. It also contains the Standard classfication for each service and space for you to enter an Alternative classification if you want.
A7: Pattern of use/benefit | B7: Code
A8: Pro-Rich | B8: -2
A9: Neutral-Minus | B9: -1
A10: Neutral | B10: 0
A11: Neutral-Plus | B11: 1
A12: Pro-Poor | B12: 2
A13: Very Pro-Poor | B13: 3
A14: Back Office | B14: 99
A15: Unclassified | B15: 100
A17: Savings tables: This sheet collates the savings data that is entered in the classification sheet
A19: Summary: This sheet has two tables showing the results for your council area. You need to select your authority from the drop-down list. You do not enter any data here, but do need to 'refresh' the table once your savings data has been entered into the 'Savings & Service Classification' sheet. If you are using the Standard classification, you need only consult the first table. Should you wish to use an Alternative classification, then these results will be presented in the second table.
A20: The summary tables present both expenditure and savings data. The expenditure data is generated automaticallyby selecting your authority from the drop-down menu. The savings data is taken from the previous sheet.
A22: Charts: This sheet shows charts that are automatically generated using the data from the summary table.
A24: Instructions:
A25: In order to produce summary tables for your area complete the following instructions:
A27: 1. Go to the 'Summary' sheet and click on cell A4. Select your local authority from the drop down list provided. This will automatically generate the expenditure data for your area and will populate the first three columns of the summary tables.
A29: 2. Go to the 'Savings & Service Classification' sheet. Using your savings plans enter the savings amount (£'000) next to the corresponding service sub-heading. If there are no proposed savings against a particular heading enter zero in the cell.
A31: 3. If using the Alternative classification, enter /amend the classification in column F.
A33: 4. Once the savings have been entered go to the 'summary' sheet and click the 'refresh' button. This will update the tables with your savings data.

Sheet Savings&Service Classifications
D1: STANDARD CLASSIFICATION | F1: ALTERNATIVE CLASSIFICATION
A2: No | B2: Service Heading | C2: Service | D2: Code | E2: Pattern of use/ benefit | F2: Code | G2: Pattern of use/ benefit | H2: Savings (£'000)
A3: 1 | B3: Education | C3: Pre-primary education | D3: 0 | E3: =VLOOKUP(D3,Classification_codes!$A$6:$B$13,2,0) -> Neutral | F3: 0 | G3: =IF(ISBLANK(F3),"unclassified",(VLOOKUP(F3,Classification_codes!$A$6:$B$13,2,0))) -> Neutral
A4: 2 | B4: Education | C4: Primary education | D4: 2 | E4: =VLOOKUP(D4,Classification_codes!$A$6:$B$13,2,0) -> Pro-Poor | F4: 2 | G4: =IF(ISBLANK(F4),"unclassified",(VLOOKUP(F4,Classification_codes!$A$6:$B$13,2,0))) -> Pro-Poor
A5: 3 | B5: Education | C5: Secondary education | D5: 1 | E5: =VLOOKUP(D5,Classification_codes!$A$6:$B$13,2,0) -> Neutral-Plus | F5: 1 | G5: =IF(ISBLANK(F5),"unclassified",(VLOOKUP(F5,Classification_codes!$A$6:$B$13,2,0))) -> Neutral-Plus
A6: 4 | B6: Education | C6: Special education | D6: 2 | E6: =VLOOKUP(D6,Classification_codes!$A$6:$B$13,2,0) -> Pro-Poor | F6: 2 | G6: =IF(ISBLANK(F6),"unclassified",(VLOOKUP(F6,Classification_codes!$A$6:$B$13,2,0))) -> Pro-Poor
A7: 5 | B7: Education | C7: Community Learning | D7: -2 | E7: =VLOOKUP(D7,Classification_codes!$A$6:$B$13,2,0) -> Pro-Rich | F7: -2 | G7: =IF(ISBLANK(F7),"unclassified",(VLOOKUP(F7,Classification_codes!$A$6:$B$13,2,0))) -> Pro-Rich
A8: 6 | B8: Education | C8: Other non-school funding | D8: 1 | E8: =VLOOKUP(D8,Classification_codes!$A$6:$B$13,2,0) -> Neutral-Plus | F8: 1 | G8: =IF(ISBLANK(F8),"unclassified",(VLOOKUP(F8,Classification_codes!$A$6:$B$13,2,0))) -> Neutral-Plus
A9: 7 | B9: Cultural and related services | C9: Museums and galleries | D9: -2 | E9: =VLOOKUP(D9,Classification_codes!$A$6:$B$13,2,0) -> Pro-Rich | F9: -2 | G9: =IF(ISBLANK(F9),"unclassified",(VLOOKUP(F9,Classification_codes!$A$6:$B$13,2,0))) -> Pro-Rich
A10: 8 | B10: Cultural and related services | C10: Other cultural and heritage services | D10: -2 | E10: =VLOOKUP(D10,Classification_codes!$A$6:$B$13,2,0) -> Pro-Rich | F10: -2 | G10: =IF(ISBLANK(F10),"unclassified",(VLOOKUP(F10,Classification_codes!$A$6:$B$13,2,0))) -> Pro-Rich
A11: 9 | B11: Cultural and related services | C11: Promotional events | D11: -1 | E11: =VLOOKUP(D11,Classification_codes!$A$6:$B$13,2,0) -> Neutral-Minus | F11: -1 | G11: =IF(ISBLANK(F11),"unclassified",(VLOOKUP(F11,Classification_codes!$A$6:$B$13,2,0))) -> Neutral-Minus
A12: 10 | B12: Cultural and related services | C12: Other tourism | D12: -1 | E12: =VLOOKUP(D12,Classification_codes!$A$6:$B$13,2,0) -> Neutral-Minus | F12: -1 | G12: =IF(ISBLANK(F12),"unclassified",(VLOOKUP(F12,Classification_codes!$A$6:$B$13,2,0))) -> Neutral-Minus
A13: 11 | B13: Cultural and related services | C13: Countryside recreation and management | D13: -1 | E13: =VLOOKUP(D13,Classification_codes!$A$6:$B$13,2,0) -> Neutral-Minus | F13: -1 | G13: =IF(ISBLANK(F13),"unclassified",(VLOOKUP(F13,Classification_codes!$A$6:$B$13,2,0))) -> Neutral-Minus
A14: 12 | B14: Cultural and related services | C14: Sport facilities | D14: -1 | E14: =VLOOKUP(D14,Classification_codes!$A$6:$B$13,2,0) -> Neutral-Minus | F14: -1 | G14: =IF(ISBLANK(F14),"unclassified",(VLOOKUP(F14,Classification_codes!$A$6:$B$13,2,0))) -> Neutral-Minus
A15: 13 | B15: Cultural and related services | C15: Community parks and open spaces | D15: -1 | E15: =VLOOKUP(D15,Classification_codes!$A$6:$B$13,2,0) -> Neutral-Minus | F15: -1 | G15: =IF(ISBLANK(F15),"unclassified",(VLOOKUP(F15,Classification_codes!$A$6:$B$13,2,0))) -> Neutral-Minus
A16: 14 | B16: Cultural and related services | C16: Other recreation and sport | D16: -1 | E16: =VLOOKUP(D16,Classification_codes!$A$6:$B$13,2,0) -> Neutral-Minus | F16: -1 | G16: =IF(ISBLANK(F16),"unclassified",(VLOOKUP(F16,Classification_codes!$A$6:$B$13,2,0))) -> Neutral-Minus
A17: 15 | B17: Cultural and related services | C17: Library Service | D17: 1 | E17: =VLOOKUP(D17,Classification_codes!$A$6:$B$13,2,0) -> Neutral-Plus | F17: 1 | G17: =IF(ISBLANK(F17),"unclassified",(VLOOKUP(F17,Classification_codes!$A$6:$B$13,2,0))) -> Neutral-Plus
A18: 16 | B18: Social work | C18: Service Strategy | D18: 2 | E18: =VLOOKUP(D18,Classification_codes!$A$6:$B$13,2,0) -> Pro-Poor | F18: 2 | G18: =IF(ISBLANK(F18),"unclassified",(VLOOKUP(F18,Classification_codes!$A$6:$B$13,2,0))) -> Pro-Poor
A19: 17 | B19: Social work | C19: Children's Panel | D19: 3 | E19: =VLOOKUP(D19,Classification_codes!$A$6:$B$13,2,0) -> Very Pro-Poor | F19: 3 | G19: =IF(ISBLANK(F19),"unclassified",(VLOOKUP(F19,Classification_codes!$A$6:$B$13,2,0))) -> Very Pro-Poor
A20: 18 | B20: Social work | C20: Children and families | D20: 3 | E20: =VLOOKUP(D20,Classification_codes!$A$6:$B$13,2,0) -> Very Pro-Poor | F20: 3 | G20: =IF(ISBLANK(F20),"unclassified",(VLOOKUP(F20,Classification_codes!$A$6:$B$13,2,0))) -> Very Pro-Poor
A21: 19 | B21: Social work | C21: Older persons | D21: 2 | E21: =VLOOKUP(D21,Classification_codes!$A$6:$B$13,2,0) -> Pro-Poor | F21: 2 | G21: =IF(ISBLANK(F21),"unclassified",(VLOOKUP(F21,Classification_codes!$A$6:$B$13,2,0))) -> Pro-Poor
A22: 20 | B22: Social work | C22: Adults with physical or sensory disabilities | D22: 2 | E22: =VLOOKUP(D22,Classification_codes!$A$6:$B$13,2,0) -> Pro-Poor | F22: 2 | G22: =IF(ISBLANK(F22),"unclassified",(VLOOKUP(F22,Classification_codes!$A$6:$B$13,2,0))) -> Pro-Poor
A23: 21 | B23: Social work | C23: Adults with learning disabilities | D23: 2 | E23: =VLOOKUP(D23,Classification_codes!$A$6:$B$13,2,0) -> Pro-Poor | F23: 2 | G23: =IF(ISBLANK(F23),"unclassified",(VLOOKUP(F23,Classification_codes!$A$6:$B$13,2,0))) -> Pro-Poor
A24: 22 | B24: Social work | C24: Adults with mental health needs | D24: 2 | E24: =VLOOKUP(D24,Classification_codes!$A$6:$B$13,2,0) -> Pro-Poor | F24: 2 | G24: =IF(ISBLANK(F24),"unclassified",(VLOOKUP(F24,Classification_codes!$A$6:$B$13,2,0))) -> Pro-Poor
A25: 23 | B25: Social work | C25: Adults with other needs | D25: 2 | E25: =VLOOKUP(D25,Classification_codes!$A$6:$B$13,2,0) -> Pro-Poor | F25: 2 | G25: =IF(ISBLANK(F25),"unclassified",(VLOOKUP(F25,Classification_codes!$A$6:$B$13,2,0))) -> Pro-Poor
A26: 24 | B26: Social work | C26: Criminal justice social work services | D26: 2 | E26: =VLOOKUP(D26,Classification_codes!$A$6:$B$13,2,0) -> Pro-Poor | F26: 2 | G26: =IF(ISBLANK(F26),"unclassified",(VLOOKUP(F26,Classification_codes!$A$6:$B$13,2,0))) -> Pro-Poor
A27: 25 | B27: Roads and transport | C27: Road construction | D27: -1 | E27: =VLOOKUP(D27,Classification_codes!$A$6:$B$13,2,0) -> Neutral-Minus | F27: -1 | G27: =IF(ISBLANK(F27),"unclassified",(VLOOKUP(F27,Classification_codes!$A$6:$B$13,2,0))) -> Neutral-Minus
A28: 26 | B28: Roads and transport | C28: Winter maintenance | D28: -1 | E28: =VLOOKUP(D28,Classification_codes!$A$6:$B$13,2,0) -> Neutral-Minus | F28: -1 | G28: =IF(ISBLANK(F28),"unclassified",(VLOOKUP(F28,Classification_codes!$A$6:$B$13,2,0))) -> Neutral-Minus
A29: 27 | B29: Roads and transport | C29: Maintenance & repairs | D29: -1 | E29: =VLOOKUP(D29,Classification_codes!$A$6:$B$13,2,0) -> Neutral-Minus | F29: -1 | G29: =IF(ISBLANK(F29),"unclassified",(VLOOKUP(F29,Classification_codes!$A$6:$B$13,2,0))) -> Neutral-Minus
A30: 28 | B30: Roads and transport | C30: Road lighting | D30: -1 | E30: =VLOOKUP(D30,Classification_codes!$A$6:$B$13,2,0) -> Neutral-Minus | F30: -1 | G30: =IF(ISBLANK(F30),"unclassified",(VLOOKUP(F30,Classification_codes!$A$6:$B$13,2,0))) -> Neutral-Minus
A31: 29 | B31: Roads and transport | C31: School crossing patrols | D31: -1 | E31: =VLOOKUP(D31,Classification_codes!$A$6:$B$13,2,0) -> Neutral-Minus | F31: -1 | G31: =IF(ISBLANK(F31),"unclassified",(VLOOKUP(F31,Classification_codes!$A$6:$B$13,2,0))) -> Neutral-Minus
A32: 30 | B32: Roads and transport | C32: Road Safety and Traffic Calming | D32: -1 | E32: =VLOOKUP(D32,Classification_codes!$A$6:$B$13,2,0) -> Neutral-Minus | F32: -1 | G32: =IF(ISBLANK(F32),"unclassified",(VLOOKUP(F32,Classification_codes!$A$6:$B$13,2,0))) -> Neutral-Minus
A33: 31 | B33: Roads and transport | C33: Other network and traffic management | D33: -1 | E33: =VLOOKUP(D33,Classification_codes!$A$6:$B$13,2,0) -> Neutral-Minus | F33: -1 | G33: =IF(ISBLANK(F33),"unclassified",(VLOOKUP(F33,Classification_codes!$A$6:$B$13,2,0))) -> Neutral-Minus
A34: 32 | B34: Roads and transport | C34: Parking | D34: -2 | E34: =VLOOKUP(D34,Classification_codes!$A$6:$B$13,2,0) -> Pro-Rich | F34: -2 | G34: =IF(ISBLANK(F34),"unclassified",(VLOOKUP(F34,Classification_codes!$A$6:$B$13,2,0))) -> Pro-Rich
A35: 33 | B35: Roads and transport | C35: Local authority public transport | D35: 2 | E35: =VLOOKUP(D35,Classification_codes!$A$6:$B$13,2,0) -> Pro-Poor | F35: 2 | G35: =IF(ISBLANK(F35),"unclassified",(VLOOKUP(F35,Classification_codes!$A$6:$B$13,2,0))) -> Pro-Poor
A36: 34 | B36: Roads and transport | C36: Non-LA public transport: Concessionary fares | D36: 2 | E36: =VLOOKUP(D36,Classification_codes!$A$6:$B$13,2,0) -> Pro-Poor | F36: 2 | G36: =IF(ISBLANK(F36),"unclassified",(VLOOKUP(F36,Classification_codes!$A$6:$B$13,2,0))) -> Pro-Poor
A37: 35 | B37: Roads and transport | C37: Non-LA public transport: Support to operators and voluntary groups | D37: 2 | E37: =VLOOKUP(D37,Classification_codes!$A$6:$B$13,2,0) -> Pro-Poor | F37: 2 | G37: =IF(ISBLANK(F37),"unclassified",(VLOOKUP(F37,Classification_codes!$A$6:$B$13,2,0))) -> Pro-Poor
A38: 36 | B38: Roads and transport | C38: Non-LA public transport: Co-ordination | D38: 99 | E38: =VLOOKUP(D38,Classification_codes!$A$6:$B$13,2,0) -> Back Office | F38: 99 | G38: =IF(ISBLANK(F38),"unclassified",(VLOOKUP(F38,Classification_codes!$A$6:$B$13,2,0))) -> Back Office
A39: 37 | B39: Environmental services | C39: Trading Standards - Citizens Advice | D39: 3 | E39: =VLOOKUP(D39,Classification_codes!$A$6:$B$13,2,0) -> Very Pro-Poor | F39: 3 | G39: =IF(ISBLANK(F39),"unclassified",(VLOOKUP(F39,Classification_codes!$A$6:$B$13,2,0))) -> Very Pro-Poor
A40: 38 | B40: Environmental services | C40: Tradind Standards - Other (Consumer Protection) | D40: 0 | E40: =VLOOKUP(D40,Classification_codes!$A$6:$B$13,2,0) -> Neutral | F40: 0 | G40: =IF(ISBLANK(F40),"unclassified",(VLOOKUP(F40,Classification_codes!$A$6:$B$13,2,0))) -> Neutral
A41: 39 | B41: Environmental services | C41: Waste Management - Waste Collection | D41: 0 | E41: =VLOOKUP(D41,Classification_codes!$A$6:$B$13,2,0) -> Neutral | F41: 0 | G41: =IF(ISBLANK(F41),"unclassified",(VLOOKUP(F41,Classification_codes!$A$6:$B$13,2,0))) -> Neutral
A42: 40 | B42: Environmental services | C42: Waste Management - Waste Disposal | D42: 0 | E42: =VLOOKUP(D42,Classification_codes!$A$6:$B$13,2,0) -> Neutral | F42: 0 | G42: =IF(ISBLANK(F42),"unclassified",(VLOOKUP(F42,Classification_codes!$A$6:$B$13,2,0))) -> Neutral
A43: 41 | B43: Environmental services | C43: Waste Management - Other | D43: 0 | E43: =VLOOKUP(D43,Classification_codes!$A$6:$B$13,2,0) -> Neutral | F43: 0 | G43: =IF(ISBLANK(F43),"unclassified",(VLOOKUP(F43,Classification_codes!$A$6:$B$13,2,0))) -> Neutral
A44: 42 | B44: Environmental services | C44: Other - Cemetery, cremation and mortuary services | D44: 0 | E44: =VLOOKUP(D44,Classification_codes!$A$6:$B$13,2,0) -> Neutral | F44: 0 | G44: =IF(ISBLANK(F44),"unclassified",(VLOOKUP(F44,Classification_codes!$A$6:$B$13,2,0))) -> Neutral
A45: 43 | B45: Environmental services | C45: Other - Coast Protection | D45: 0 | E45: =VLOOKUP(D45,Classification_codes!$A$6:$B$13,2,0) -> Neutral | F45: 0 | G45: =IF(ISBLANK(F45),"unclassified",(VLOOKUP(F45,Classification_codes!$A$6:$B$13,2,0))) -> Neutral
A46: 44 | B46: Environmental services | C46: Other - Flood defence and land drainage | D46: 0 | E46: =VLOOKUP(D46,Classification_codes!$A$6:$B$13,2,0) -> Neutral | F46: 0 | G46: =IF(ISBLANK(F46),"unclassified",(VLOOKUP(F46,Classification_codes!$A$6:$B$13,2,0))) -> Neutral
A47: 45 | B47: Environmental services | C47: Other - Environmental Health | D47: 0 | E47: =VLOOKUP(D47,Classification_codes!$A$6:$B$13,2,0) -> Neutral | F47: 0 | G47: =IF(ISBLANK(F47),"unclassified",(VLOOKUP(F47,Classification_codes!$A$6:$B$13,2,0))) -> Neutral
A48: 46 | B48: Planning and economic development | C48: Planning: Building control | D48: -2 | E48: =VLOOKUP(D48,Classification_codes!$A$6:$B$13,2,0) -> Pro-Rich | F48: -2 | G48: =IF(ISBLANK(F48),"unclassified",(VLOOKUP(F48,Classification_codes!$A$6:$B$13,2,0))) -> Pro-Rich
A49: 47 | B49: Planning and economic development | C49: Planning: Development control | D49: -2 | E49: =VLOOKUP(D49,Classification_codes!$A$6:$B$13,2,0) -> Pro-Rich | F49: -2 | G49: =IF(ISBLANK(F49),"unclassified",(VLOOKUP(F49,Classification_codes!$A$6:$B$13,2,0))) -> Pro-Rich
A50: 48 | B50: Planning and economic development | C50: Planning: Policy | D50: -2 | E50: =VLOOKUP(D50,Classification_codes!$A$6:$B$13,2,0) -> Pro-Rich | F50: -2 | G50: =IF(ISBLANK(F50),"unclassified",(VLOOKUP(F50,Classification_codes!$A$6:$B$13,2,0))) -> Pro-Rich
A51: 49 | B51: Planning and economic development | C51: Planning: Environmental initiatives | D51: 0 | E51: =VLOOKUP(D51,Classification_codes!$A$6:$B$13,2,0) -> Neutral | F51: 0 | G51: =IF(ISBLANK(F51),"unclassified",(VLOOKUP(F51,Classification_codes!$A$6:$B$13,2,0))) -> Neutral
A52: 50 | B52: Planning and economic development | C52: Economic development | D52: 0 | E52: =VLOOKUP(D52,Classification_codes!$A$6:$B$13,2,0) -> Neutral | F52: 0 | G52: =IF(ISBLANK(F52),"unclassified",(VLOOKUP(F52,Classification_codes!$A$6:$B$13,2,0))) -> Neutral
A53: 51 | B53: Non-HRA Housing | C53: Administration of Housing Advances | D53: 3 | E53: =VLOOKUP(D53,Classification_codes!$A$6:$B$13,2,0) -> Very Pro-Poor | F53: 3 | G53: =IF(ISBLANK(F53),"unclassified",(VLOOKUP(F53,Classification_codes!$A$6:$B$13,2,0))) -> Very Pro-Poor
A54: 52 | B54: Non-HRA Housing | C54: Renovation and Improvement Grants (excl admin costs) | D54: 3 | E54: =VLOOKUP(D54,Classification_codes!$A$6:$B$13,2,0) -> Very Pro-Poor | F54: 3 | G54: =IF(ISBLANK(F54),"unclassified",(VLOOKUP(F54,Classification_codes!$A$6:$B$13,2,0))) -> Very Pro-Poor
A55: 53 | B55: Non-HRA Housing | C55: Administration of Renovation and Improvement Grants | D55: 3 | E55: =VLOOKUP(D55,Classification_codes!$A$6:$B$13,2,0) -> Very Pro-Poor | F55: 3 | G55: =IF(ISBLANK(F55),"unclassified",(VLOOKUP(F55,Classification_codes!$A$6:$B$13,2,0))) -> Very Pro-Poor
A56: 54 | B56: Non-HRA Housing | C56: Other Private Sector Housing Renewal | D56: 3 | E56: =VLOOKUP(D56,Classification_codes!$A$6:$B$13,2,0) -> Very Pro-Poor | F56: 3 | G56: =IF(ISBLANK(F56),"unclassified",(VLOOKUP(F56,Classification_codes!$A$6:$B$13,2,0))) -> Very Pro-Poor
A57: 55 | B57: Non-HRA Housing | C57: Housing Benefits: Rent Allowance | D57: 3 | E57: =VLOOKUP(D57,Classification_codes!$A$6:$B$13,2,0) -> Very Pro-Poor | F57: 3 | G57: =IF(ISBLANK(F57),"unclassified",(VLOOKUP(F57,Classification_codes!$A$6:$B$13,2,0))) -> Very Pro-Poor
A58: 56 | B58: Non-HRA Housing | C58: Housing Benefits: Rent Rebate | D58: 3 | E58: =VLOOKUP(D58,Classification_codes!$A$6:$B$13,2,0) -> Very Pro-Poor | F58: 3 | G58: =IF(ISBLANK(F58),"unclassified",(VLOOKUP(F58,Classification_codes!$A$6:$B$13,2,0))) -> Very Pro-Poor
A59: 57 | B59: Non-HRA Housing | C59: Homelessness | D59: 3 | E59: =VLOOKUP(D59,Classification_codes!$A$6:$B$13,2,0) -> Very Pro-Poor | F59: 3 | G59: =IF(ISBLANK(F59),"unclassified",(VLOOKUP(F59,Classification_codes!$A$6:$B$13,2,0))) -> Very Pro-Poor
A60: 58 | B60: Non-HRA Housing | C60: Housing Support Services | D60: 3 | E60: =VLOOKUP(D60,Classification_codes!$A$6:$B$13,2,0) -> Very Pro-Poor | F60: 3 | G60: =IF(ISBLANK(F60),"unclassified",(VLOOKUP(F60,Classification_codes!$A$6:$B$13,2,0))) -> Very Pro-Poor
A61: 59 | B61: Non-HRA Housing | C61: Welfare Services | D61: 3 | E61: =VLOOKUP(D61,Classification_codes!$A$6:$B$13,2,0) -> Very Pro-Poor | F61: 3 | G61: =IF(ISBLANK(F61),"unclassified",(VLOOKUP(F61,Classification_codes!$A$6:$B$13,2,0))) -> Very Pro-Poor
A62: 60 | B62: Non-HRA Housing | C62: Other non-HRA Housing (excl. admin of Housing Benefits) | D62: 3 | E62: =VLOOKUP(D62,Classification_codes!$A$6:$B$13,2,0) -> Very Pro-Poor | F62: 3 | G62: =IF(ISBLANK(F62),"unclassified",(VLOOKUP(F62,Classification_codes!$A$6:$B$13,2,0))) -> Very Pro-Poor
A63: 61 | B63: Central services | C63: Council Tax Collection | D63: 99 | E63: =VLOOKUP(D63,Classification_codes!$A$6:$B$13,2,0) -> Back Office | F63: 99 | G63: =IF(ISBLANK(F63),"unclassified",(VLOOKUP(F63,Classification_codes!$A$6:$B$13,2,0))) -> Back Office
A64: 62 | B64: Central services | C64: Non-Domestic Rates Collection | D64: 99 | E64: =VLOOKUP(D64,Classification_codes!$A$6:$B$13,2,0) -> Back Office | F64: 99 | G64: =IF(ISBLANK(F64),"unclassified",(VLOOKUP(F64,Classification_codes!$A$6:$B$13,2,0))) -> Back Office
A65: 63 | B65: Central services | C65: Administration of Council Tax Reduction & Housing Benefit | D65: 3 | E65: =VLOOKUP(D65,Classification_codes!$A$6:$B$13,2,0) -> Very Pro-Poor | F65: 3 | G65: =IF(ISBLANK(F65),"unclassified",(VLOOKUP(F65,Classification_codes!$A$6:$B$13,2,0))) -> Very Pro-Poor
A66: 64 | B66: Central services | C66: Emergency Planning | D66: 0 | E66: =VLOOKUP(D66,Classification_codes!$A$6:$B$13,2,0) -> Neutral | F66: 0 | G66: =IF(ISBLANK(F66),"unclassified",(VLOOKUP(F66,Classification_codes!$A$6:$B$13,2,0))) -> Neutral
A67: 65 | B67: Central services | C67: Licensing | D67: 0 | E67: =VLOOKUP(D67,Classification_codes!$A$6:$B$13,2,0) -> Neutral | F67: 0 | G67: =IF(ISBLANK(F67),"unclassified",(VLOOKUP(F67,Classification_codes!$A$6:$B$13,2,0))) -> Neutral
A68: 66 | B68: Central services | C68: Conducting Elections | D68: 0 | E68: =VLOOKUP(D68,Classification_codes!$A$6:$B$13,2,0) -> Neutral | F68: 0 | G68: =IF(ISBLANK(F68),"unclassified",(VLOOKUP(F68,Classification_codes!$A$6:$B$13,2,0))) -> Neutral
A69: 67 | B69: Central services | C69: Registration of Electors | D69: 0 | E69: =VLOOKUP(D69,Classification_codes!$A$6:$B$13,2,0) -> Neutral | F69: 0 | G69: =IF(ISBLANK(F69),"unclassified",(VLOOKUP(F69,Classification_codes!$A$6:$B$13,2,0))) -> Neutral
A70: 68 | B70: Central services | C70: Non-Domestic Lands Valuation | D70: 99 | E70: =VLOOKUP(D70,Classification_codes!$A$6:$B$13,2,0) -> Back Office | F70: 99 | G70: =IF(ISBLANK(F70),"unclassified",(VLOOKUP(F70,Classification_codes!$A$6:$B$13,2,0))) -> Back Office
A71: 69 | B71: Central services | C71: Council Tax Valuation | D71: 99 | E71: =VLOOKUP(D71,Classification_codes!$A$6:$B$13,2,0) -> Back Office | F71: 99 | G71: =IF(ISBLANK(F71), "unclassified", (VLOOKUP(F71, Classification_codes!$A$6:$B$13,2,0))) -> Back Office
A72: 70 | B72: Central services | C72: Second Home Discount | D72: -1 | E72: =VLOOKUP(D72, Classification_codes!$A$6:$B$13,2,0) -> Neutral-Minus | F72: -1 | G72: =IF(ISBLANK(F72), "unclassified", (VLOOKUP(F72, Classification_codes!$A$6:$B$13,2,0))) -> Neutral-Minus
A73: 71 | B73: Central services | C73: Non-Road Lighting | D73: -1 | E73: =VLOOKUP(D73, Classification_codes!$A$6:$B$13,2,0) -> Neutral-Minus | F73: -1 | G73: =IF(ISBLANK(F73), "unclassified", (VLOOKUP(F73, Classification_codes!$A$6:$B$13,2,0))) -> Neutral-Minus
A74: 72 | B74: Central services | C74: General Grants, Bequests & Donations | D74: 2 | E74: =VLOOKUP(D74, Classification_codes!$A$6:$B$13,2,0) -> Pro-Poor | F74: 2 | G74: =IF(ISBLANK(F74), "unclassified", (VLOOKUP(F74, Classification_codes!$A$6:$B$13,2,0))) -> Pro-Poor
A75: 73 | B75: Central services | C75: Registration of Births, Deaths & Marriages | D75: 0 | E75: =VLOOKUP(D75, Classification_codes!$A$6:$B$13,2,0) -> Neutral | F75: 0 | G75: =IF(ISBLANK(F75), "unclassified", (VLOOKUP(F75, Classification_codes!$A$6:$B$13,2,0))) -> Neutral
A76: 74 | B76: Central services | C76: Corporate and Democratic Core | D76: 99 | E76: =VLOOKUP(D76, Classification_codes!$A$6:$B$13,2,0) -> Back Office | F76: 99 | G76: =IF(ISBLANK(F76), "unclassified", (VLOOKUP(F76, Classification_codes!$A$6:$B$13,2,0))) -> Back Office
A77: 75 | B77: Central services | C77: Equal Pay/Single Status (prior year cost/provision only) | D77: 99 | E77: =VLOOKUP(D77, Classification_codes!$A$6:$B$13,2,0) -> Back Office | F77: 99 | G77: =IF(ISBLANK(F77), "unclassified", (VLOOKUP(F77, Classification_codes!$A$6:$B$13,2,0))) -> Back Office
A78: 76 | B78: Central services | C78: Non Distributed Costs | D78: 99 | E78: =VLOOKUP(D78, Classification_codes!$A$6:$B$13,2,0) -> Back Office | F78: 99 | G78: =IF(ISBLANK(F78), "unclassified", (VLOOKUP(F78, Classification_codes!$A$6:$B$13,2,0))) -> Back Office
A79: 77 | B79: Central services | C79: Miscellaneous | D79: 99 | E79: =VLOOKUP(D79, Classification_codes!$A$6:$B$13,2,0) -> Back Office | F79: 99 | G79: =IF(ISBLANK(F79), "unclassified", (VLOOKUP(F79, Classification_codes!$A$6:$B$13,2,0))) -> Back Office
A80: 78 | B80: Central services | C80: Surplus(-)/Deficit(+) on trading operations not already included | D80: 100 | E80: =VLOOKUP(D80, Classification_codes!$A$6:$B$13,2,0) -> Unclassified | F80: 100 | G80: =IF(ISBLANK(F80), "unclassified", (VLOOKUP(F80, Classification_codes!$A$6:$B$13,2,0))) -> Unclassified
A81: 79 | B81: Central services | C81: Capital expenditure charged to the General Fund | D81: 100 | E81: =VLOOKUP(D81, Classification_codes!$A$6:$B$13,2,0) -> Unclassified | F81: 100 | G81: =IF(ISBLANK(F81), "unclassified", (VLOOKUP(F81, Classification_codes!$A$6:$B$13,2,0))) -> Unclassified
A82: 80 | B82: Central services | C82: Interest and Investment income (record a credit as a negative value) | D82: 100 | E82: =VLOOKUP(D82, Classification_codes!$A$6:$B$13,2,0) -> Unclassified | F82: 100 | G82: =IF(ISBLANK(F82), "unclassified", (VLOOKUP(F82, Classification_codes!$A$6:$B$13,2,0))) -> Unclassified
A83: 81 | B83: Central services | C83: Statutory repayment of debt - Loans fund | D83: 100 | E83: =VLOOKUP(D83, Classification_codes!$A$6:$B$13,2,0) -> Unclassified | F83: 100 | G83: =IF(ISBLANK(F83), "unclassified", (VLOOKUP(F83, Classification_codes!$A$6:$B$13,2,0))) -> Unclassified
A84: 82 | B84: Central services | C84: Statutory repayment of debt - Credit arrangements (Finance leases / PPP/PFI) | D84: 100 | E84: =VLOOKUP(D84, Classification_codes!$A$6:$B$13,2,0) -> Unclassified | F84: 100 | G84: =IF(ISBLANK(F84), "unclassified", (VLOOKUP(F84, Classification_codes!$A$6:$B$13,2,0))) -> Unclassified
A85: 83 | B85: Central services | C85: Interest payable and similar charges | D85: 100 | E85: =VLOOKUP(D85, Classification_codes!$A$6:$B$13,2,0) -> Unclassified | F85: 100 | G85: =IF(ISBLANK(F85), "unclassified", (VLOOKUP(F85, Classification_codes!$A$6:$B$13,2,0))) -> Unclassified
A86: 84 | B86: Central services | C86: Premiums and discounts | D86: 100 | E86: =VLOOKUP(D86, Classification_codes!$A$6:$B$13,2,0) -> Unclassified | F86: 100 | G86: =IF(ISBLANK(F86), "unclassified", (VLOOKUP(F86, Classification_codes!$A$6:$B$13,2,0))) -> Unclassified
A87: 85 | B87: Central services | C87: Debt Management Expenses | D87: 100 | E87: =VLOOKUP(D87, Classification_codes!$A$6:$B$13,2,0) -> Unclassified | F87: 100 | G87: =IF(ISBLANK(F87), "unclassified", (VLOOKUP(F87, Classification_codes!$A$6:$B$13,2,0))) -> Unclassified
A88: 86 | B88: Central services | C88: Contingency | D88: 100 | E88: =VLOOKUP(D88, Classification_codes!$A$6:$B$13,2,0) -> Unclassified | F88: 100 | G88: =IF(ISBLANK(F88), "unclassified", (VLOOKUP(F88, Classification_codes!$A$6:$B$13,2,0))) -> Unclassified

Sheet savings_tables
A3: Row Labels | B3: Sum of Savings (£'000)
A4: -2
A5: -1
A6: 0
A7: 1
A8: 2
A9: 3
A10: 99
A11: 100
A12: Grand Total
A17: Row Labels | B17: Sum of Savings (£'000)
A18: -2
A19: -1
A20: 0
A21: 1
A22: 2
A23: 3
A24: 99
A25: 100
A26: Grand Total

Sheet Summary
A3: Local Authority | B3: Population
A4: Aberdeen City | B4: =VLOOKUP($A$4, 'Budget Estimate 2018-19'!$A$1:$CG$37,2,FALSE) -> 229840
B7: STANDARD CLASSIFICATION
B8: Pattern of use | C8: Expenditure (£'000) | D8: Expenditure (%) | E8: Expenditure per capita | F8: Savings (£'000) | G8: Savings (%) | H8: Savings per capita | I8: Savings as % of expenditure
B9: Pro-Rich | C9: =VLOOKUP($A$4,'Budget Estimate 2018-19'!$A$1:$DW$37,91,FALSE) -> 17413 | D9: =VLOOKUP($A$4,'Budget Estimate 2018-19'!$A$1:$DW$37,101,FALSE) -> 0.03794442459 | E9: =C9/($B$4/1000) -> 75.76139923 | F9: =GETPIVOTDATA("savings (£'000)",savings_tables!$A$3,"code",-2) -> 0 | G9: =F9/$F$17 ->  | H9: =F9/($B$4/1000) -> 0 | I9: =F9/C9 -> 0
B10: Neutral-Minus | C10: =VLOOKUP($A$4,'Budget Estimate 2018-19'!$A$1:$DW$37,92,FALSE) -> 23792 | D10: =VLOOKUP($A$4,'Budget Estimate 2018-19'!$A$1:$DW$37,102,FALSE) -> 0.05184481421 | E10: =C10/($B$4/1000) -> 103.515489 | F10: =GETPIVOTDATA("savings (£'000)",savings_tables!$A$3,"code",-1) -> 0 | G10: =F10/$F$17 ->  | H10: =F10/($B$4/1000) -> 0 | I10: =F10/C10 -> 0
B11: Neutral | C11: =VLOOKUP($A$4,'Budget Estimate 2018-19'!$A$1:$DW$37,93,FALSE) -> 59413 | D11: =VLOOKUP($A$4,'Budget Estimate 2018-19'!$A$1:$DW$37,103,FALSE) -> 0.1294660368 | E11: 258.4972155 | F11: =GETPIVOTDATA("savings (£'000)",savings_tables!$A$3,"code",0) -> 0 | H11: 0 | I11: 0
B12: Neutral-Plus | C12: =VLOOKUP($A$4,'Budget Estimate 2018-19'!$A$1:$DW$37,94,FALSE) -> 68142 | D12: =VLOOKUP($A$4,'Budget Estimate 2018-19'!$A$1:$DW$37,104,FALSE) -> 0.1484872785 | E12: 296.4758093 | F12: =GETPIVOTDATA("savings (£'000)",savings_tables!$A$3,"code",1) -> 0 | H12: 0 | I12: 0
B13: Pro-Poor | C13: =VLOOKUP($A$4,'Budget Estimate 2018-19'!$A$1:$DW$37,95,FALSE) -> 190334 | D13: =VLOOKUP($A$4,'Budget Estimate 2018-19'!$A$1:$DW$37,105,FALSE) -> 0.4147541555 | E13: 828.1152106 | F13: =GETPIVOTDATA("savings (£'000)",savings_tables!$A$3,"code",2) -> 0 | H13: 0 | I13: 0
B14: Very Pro-Poor | C14: =VLOOKUP($A$4,'Budget Estimate 2018-19'!$A$1:$DW$37,96,FALSE) -> 60309 | D14: =VLOOKUP($A$4,'Budget Estimate 2018-19'!$A$1:$DW$37,106,FALSE) -> 0.1314184978 | E14: 262.3955795 | F14: =GETPIVOTDATA("savings (£'000)",savings_tables!$A$3,"code",3) -> 0 | H14: 0 | I14: 0
B15: Back Office | C15: =VLOOKUP($A$4,'Budget Estimate 2018-19'!$A$1:$DW$37,97,FALSE) -> 7421 | D15: =VLOOKUP($A$4,'Budget Estimate 2018-19'!$A$1:$DW$37,107,FALSE) -> 0.01617099724 | E15: 32.28767838 | F15: =GETPIVOTDATA("savings (£'000)",savings_tables!$A$3,"code",99) -> 0 | H15: 0 | I15: =F15/C15 -> 0
B16: Unclassified | C16: =VLOOKUP($A$4,'Budget Estimate 2018-19'!$A$1:$DW$37,98,FALSE) -> 32084 | D16: =VLOOKUP($A$4,'Budget Estimate 2018-19'!$A$1:$DW$37,108,FALSE) -> 0.06991379536 | E16: 139.5927602 | F16: =GETPIVOTDATA("savings (£'000)",savings_tables!$A$3,"code",100) -> 0 | H16: 0
B17: Total | C17: =SUM(C9:C16) -> 458908 | D17: =SUM(D9:D16) -> 1 | E17: 1996.641142 | F17: =SUM(F9:F16) -> 0 | H17: =F17/($B$4/1000) -> 0
B20: ALTERNATIVE CLASSIFICATION
B21: Pattern of use | C21: Expenditure (£'000) | D21: Expenditure (%) | E21: Expenditure per capita | F21: Savings (£'000) | G21: Savings (%) | H21: Savings per capita | I21: Savings as % of expenditure
B22: Pro-Rich | C22: =VLOOKUP($A$4,'Budget Estimate 2018-19'!$A$1:$DW$37,110,FALSE) -> 17413 | D22: =VLOOKUP($A$4,'Budget Estimate 2018-19'!$A$1:$DW$37,120,FALSE) -> 0.03794442459 | E22: =C22/($B$4/1000) -> 75.76139923 | F22: =GETPIVOTDATA("savings (£'000)",savings_tables!$A$17,"code2",-2) -> 0 | G22: =F22/$F$30 ->  | H22: =F22/($B$4/1000) -> 0 | I22: =F22/C22 -> 0
B23: Neutral-Minus | C23: =VLOOKUP($A$4,'Budget Estimate 2018-19'!$A$1:$DW$37,111,FALSE) -> 23792 | D23: =VLOOKUP($A$4,'Budget Estimate 2018-19'!$A$1:$DW$37,121,FALSE) -> 0.05184481421 | E23: =C23/($B$4/1000) -> 103.515489 | F23: =GETPIVOTDATA("savings (£'000)",savings_tables!$A$17,"code2",-1) -> 0 | G23: =F23/$F$30 ->  | H23: =F23/($B$4/1000) -> 0 | I23: =F23/C23 -> 0
B24: Neutral | C24: =VLOOKUP($A$4,'Budget Estimate 2018-19'!$A$1:$DW$37,112,FALSE) -> 59413 | D24: =VLOOKUP($A$4,'Budget Estimate 2018-19'!$A$1:$DW$37,122,FALSE) -> 0.1294660368 | E24: 258.4972155 | F24: =GETPIVOTDATA("savings (£'000)",savings_tables!$A$17,"code2",0) -> 0 | H24: 0 | I24: 0
B25: Neutral-Plus | C25: =VLOOKUP($A$4,'Budget Estimate 2018-19'!$A$1:$DW$37,113,FALSE) -> 68142 | D25: =VLOOKUP($A$4,'Budget Estimate 2018-19'!$A$1:$DW$37,123,FALSE) -> 0.1484872785 | E25: 296.4758093 | F25: =GETPIVOTDATA("savings (£'000)",savings_tables!$A$17,"code2",1) -> 0 | H25: 0 | I25: 0
B26: Pro-Poor | C26: =VLOOKUP($A$4,'Budget Estimate 2018-19'!$A$1:$DW$37,114,FALSE) -> 190334 | D26: =VLOOKUP($A$4,'Budget Estimate 2018-19'!$A$1:$DW$37,124,FALSE) -> 0.4147541555 | E26: 828.1152106 | F26: =GETPIVOTDATA("savings (£'000)",savings_tables!$A$17,"code2",2) -> 0 | H26: 0 | I26: 0
B27: Very Pro-Poor | C27: =VLOOKUP($A$4,'Budget Estimate 2018-19'!$A$1:$DW$37,115,FALSE) -> 60309 | D27: =VLOOKUP($A$4,'Budget Estimate 2018-19'!$A$1:$DW$37,125,FALSE) -> 0.1314184978 | E27: 262.3955795 | F27: =GETPIVOTDATA("savings (£'000)",savings_tables!$A$17,"code2",3) -> 0 | H27: 0 | I27: 0
B28: Back Office | C28: =VLOOKUP($A$4,'Budget Estimate 2018-19'!$A$1:$DW$37,116,FALSE) -> 7421 | D28: =VLOOKUP($A$4,'Budget Estimate 2018-19'!$A$1:$DW$37,126,FALSE) -> 0.01617099724 | E28: 32.28767838 | F28: =GETPIVOTDATA("savings (£'000)",savings_tables!$A$17,"code2",99) -> 0 | H28: 0 | I28: 0
B29: Unclassified | C29: =VLOOKUP($A$4,'Budget Estimate 2018-19'!$A$1:$DW$37,117,FALSE) -> 32084 | D29: =VLOOKUP($A$4,'Budget Estimate 2018-19'!$A$1:$DW$37,127,FALSE) -> 0.06991379536 | E29: 139.5927602 | F29: =GETPIVOTDATA("savings (£'000)",savings_tables!$A$17,"code2",100) -> 0 | H29: 0
B30: Total | C30: =SUM(C22:C29) -> 458908 | D30: =SUM(D22:D29) -> 1 | E30: 1996.641142 | F30: =SUM(F22:F29) -> 0 | H30: 0

Sheet Summary2
B2: STANDARD CLASSIFICATION
B3: Pattern of use | C3: Expenditure (£'000) | D3: Expenditure (%) | E3: Expenditure per capita | F3: Savings (£'000) | G3: Savings (%) | H3: Savings per capita | I3: Savings as % of expenditure
B4: Pro-Rich | C4: =Summary!C9 -> 17413 | D4: =C4/C9 -> 0.03794442459 | E4: =(C4*1000)/Summary!B4 -> 75.76139923 | F4: =Summary!F9 -> 0 | G4: =F4/F9 ->  | H4: =F4/(Summary!B4/1000) -> 0 | I4: =F4/C4 -> 0
B5: Neutral | C5: =SUM(Summary!C10:C12) -> 151347 | D5: =C5/C9 -> 0.3297981295 | E5: =(C5*1000)/Summary!B4 -> 658.4885137 | F5: =SUM(Summary!F10:F12) -> 0 | G5: =F5/F9 ->  | H5: =F5/(Summary!B4/1000) -> 0 | I5: =F5/C5 -> 0
B6: Pro-Poor | C6: =SUM(Summary!C13:C14) -> 250643 | D6: =C6/C9 -> 0.5461726533 | E6: =(C6*1000)/Summary!B4 -> 1090.51079 | F6: =SUM(Summary!F13:F14) -> 0 | G6: =F6/F9 ->  | H6: =F6/(Summary!B4/1000) -> 0 | I6: =F6/C6 -> 0
B7: Back Office | C7: =Summary!C15 -> 7421 | D7: =C7/C9 -> 0.01617099724 | E7: =(C7*1000)/Summary!B4 -> 32.28767838 | F7: =Summary!F15 -> 0 | G7: =F7/F9 ->  | H7: =F7/(Summary!B4/1000) -> 0 | I7: =F7/C7 -> 0
B8: Unclassified | C8: =Summary!C16 -> 32084 | D8: =C8/C9 -> 0.06991379536 | E8: =(C8*1000)/Summary!B4 -> 139.5927602 | F8: =Summary!F16 -> 0 | G8: =F8/F9 ->  | H8: =F8/(Summary!B4/1000) -> 0 | I8: =F8/C8 -> 0
B9: Total | C9: =SUM(C4:C8) -> 458908 | D9: =SUM(D4:D7) -> 0.9300862046 | E9: =(C9*1000)/Summary!B4 -> 1996.641142 | F9: =SUM(F4:F8) -> 0 | G9: =SUM(G4:G8) ->  | H9: =F9/(Summary!B4/1000) -> 0
B20: ALTERNATIVE CLASSIFICATION
B21: Pattern of use | C21: Expenditure (£'000) | D21: Expenditure (%) | E21: Expenditure per capita | F21: Savings (£'000) | G21: Savings (%) | H21: Savings per capita | I21: Savings as % of expenditure
B22: Pro-Rich | C22: =Summary!C22 -> 17413 | D22: =C22/C27 -> 0.03794442459 | E22: =C22*1000/(Summary!B4) -> 75.76139923 | F22: =Summary!F22 -> 0 | G22: =F22/F27 ->  | H22: =F22/(Summary!B4/1000) -> 0 | I22: =F22/C22 -> 0
B23: Neutral | C23: =SUM(Summary!C23:C25) -> 151347 | D23: =C23/C27 -> 0.3297981295 | E23: =C23*1000/(Summary!B4) -> 658.4885137 | F23: =SUM(Summary!F23:F25) -> 0 | G23: =F23/F27 ->  | H23: =F23/(Summary!B4/1000) -> 0 | I23: =F23/C23 -> 0
B24: Pro-Poor | C24: =SUM(Summary!C26:C27) -> 250643 | D24: =C24/C27 -> 0.5461726533 | E24: =C24*1000/(Summary!B4) -> 1090.51079 | F24: =SUM(Summary!F26:F27) -> 0 | G24: =F24/F27 ->  | H24: =F24/(Summary!B4/1000) -> 0 | I24: =F24/C24 -> 0
B25: Back Office | C25: =Summary!C28 -> 7421 | D25: =C25/C27 -> 0.01617099724 | E25: =C25*1000/(Summary!B4) -> 32.28767838 | F25: =Summary!F28 -> 0 | G25: =F25/F27 ->  | H25: =F25/(Summary!B4/1000) -> 0 | I25: =F25/C25 -> 0
B26: Unclassified | C26: =Summary!C29 -> 32084 | D26: =C26/C27 -> 0.06991379536 | E26: =C26*1000/(Summary!B4) -> 139.5927602 | F26: =Summary!F29 -> 0 | G26: =F26/F27 ->  | H26: =F26/(Summary!B4/1000) -> 0 | I26: =F26/C26 -> 0
B27: Total | C27: =SUM(C22:C26) -> 458908 | D27: =SUM(D22:D26) -> 1 | E27: =C27*1000/(Summary!B4) -> 1996.641142 | F27: =SUM(F22:F26) -> 0 | G27: =SUM(G22:G26) ->  | H27: =G27/(Summary!B4/1000) -> 

Sheet Charts
A1: STANDARD CLASSIFICATION CHARTS
A188: ALTERNATIVE CLASSIFICATION CHARTS

Sheet Classification_codes (hidden)
A5: Code | B5: Pattern of use/benefit
A6: -2 | B6: Pro-Rich
A7: -1 | B7: Neutral-Minus
A8: 0 | B8: Neutral
A9: 1 | B9: Neutral-Plus
A10: 2 | B10: Pro-Poor
A11: 3 | B11: Very Pro-Poor
A12: 99 | B12: Back Office
A13: 100 | B13: Unclassified

Sheet Budget Estimate 2018-19 (hidden)
C1: Education | I1: Cultural and related services | R1: Social work | AA1: Roads and transport | AM1: Environmental services | AV1: Planning and economic development | BA1: Non-HRA Housing | BK1: Central services | CM1: Standard Classification - Summary | CW1: Standard Classification - Percentage | DF1: Alternative Classification - Summary | DP1: Alternative Classification - Percentage
B2: Population | C2: Pre-primary education | D2: Primary education | E2: Secondary education | F2: Special education | G2: Community Learning | H2: Other non-school funding | I2: Museums and galleries | J2: Other cultural and heritage services | K2: Promotional events | L2: Other tourism | M2: Countryside recreation and management | N2: Sport facilities | O2: Community parks and open spaces | P2: Other recreation and sport | Q2: Library Service | R2: Service Strategy | S2: Children's Panel | T2: Children and families | U2: Older persons | V2: Adults with physical or sensory disabilities | W2: Adults with learning disabilities | X2: Adults with mental health needs | Y2: Adults with other needs | Z2: Criminal justice social work services | AA2: Road construction | AB2: Winter maintenance | AC2: Maintenance & repairs | AD2: Road lighting | AE2: School crossing patrols | AF2: Road Safety and Traffic Calming | AG2: Other network and traffic management | AH2: Parking | AI2: Local authority public transport | AJ2: Non-LA public transport: Concessionary fares | AK2: Non-LA public transport: Support to operators and voluntary groups | AL2: Non-LA public transport: Co-ordination | AM2: Trading Standards - Citizens Advice | AN2: Tradind Standards - Other (Consumer Protection) | AO2: Waste Management - Waste Collection | AP2: Waste Management - Waste Disposal | AQ2: Waste Management - Other | AR2: Other - Cemetery, cremation and mortuary services | AS2: Other - Coast Protection | AT2: Other - Flood defence and land drainage | AU2: Other - Environmental Health | AV2: Planning: Building control | AW2: Planning: Development control | AX2: Planning: Policy | AY2: Planning: Environmental initiatives | AZ2: Economic development | BA2: Administration of Housing Advances | BB2: Renovation and Improvement Grants (excl admin costs) | BC2: Administration of Renovation and Improvement Grants | BD2: Other Private Sector Housing Renewal | BE2: Housing Benefits: Rent Allowance | BF2: Housing Benefits: Rent Rebate | BG2: Homelessness | BH2: Housing Support Services | BI2: Welfare Services | BJ2: Other non-HRA Housing (excl. admin of Housing Benefits) | BK2: Council Tax Collection | BL2: Non-Domestic Rates Collection | BM2: Administration of Council Tax Reduction & Housing Benefit | BN2: Emergency Planning | BO2: Licensing | BP2: Conducting Elections | BQ2: Registration of Electors | BR2: Non-Domestic Lands Valuation | BS2: Council Tax Valuation | BT2: Non-Road Lighting | BU2: General Grants, Bequests & Donations | BV2: Registration of Births, Deaths & Marriages | BW2: Corporate and Democratic Core | BX2: Equal Pay/Single Status (prior year cost/provision only) | BY2: Non Distributed Costs | BZ2: Miscellaneous | CA2: Surplus(-)/Deficit(+) on trading operations not already included | CB2: Capital expenditure charged to the General Fund | CC2: Interest and Investment income (record a credit as a negative value) | CD2: Statutory repayment of debt - Loans fund | CE2: Statutory repayment of debt - Credit arrangements (Finance leases / PPP/PFI) | CF2: Interest payable and similar charges | CG2: Premiums and discounts | CH2: Debt Management Expenses | CI2: Contingency | CJ2: All services | CM2: Pro-Rich | CN2: Neutral-Minus | CO2: Neutral | CP2: Neutral-Plus | CQ2: Pro-Poor | CR2: Very Pro-Poor | CS2: Back Office | CT2: Unclassified | CU2: TOTAL_EXP | CW2: Pro-Rich | CX2: Neutral-Minus | CY2: Neutral | CZ2: Neutral-Plus | DA2: Pro-Poor | DB2: Very Pro-Poor | DC2: Back Office | DD2: Unclassified | DF2: Pro-Rich | DG2: Neutral-Minus | DH2: Neutral | DI2: Neutral-Plus | DJ2: Pro-Poor | DK2: Very Pro-Poor | DL2: Back Office | DM2: Unclassified | DN2: TOTAL_EXP | DP2: Pro-Rich | DQ2: Neutral-Minus | DR2: Neutral | DS2: Neutral-Plus | DT2: Pro-Poor | DU2: Very Pro-Poor | DV2: Back Office | DW2: Unclassified
A3: Standard Classification | C3: ='Savings&Service Classifications'!D3 -> 0 | D3: ='Savings&Service Classifications'!D4 -> 2 | E3: ='Savings&Service Classifications'!D5 -> 1 | F3: ='Savings&Service Classifications'!D6 -> 2 | G3: ='Savings&Service Classifications'!D7 -> -2 | H3: ='Savings&Service Classifications'!D8 -> 1 | I3: ='Savings&Service Classifications'!D9 -> -2 | J3: ='Savings&Service Classifications'!D10 -> -2 | K3: ='Savings&Service Classifications'!D11 -> -1 | L3: ='Savings&Service Classifications'!D12 -> -1 | M3: ='Savings&Service Classifications'!D13 -> -1 | N3: ='Savings&Service Classifications'!D14 -> -1 | O3: ='Savings&Service Classifications'!D15 -> -1 | P3: ='Savings&Service Classifications'!D16 -> -1 | Q3: ='Savings&Service Classifications'!D17 -> 1 | R3: ='Savings&Service Classifications'!D18 -> 2 | S3: ='Savings&Service Classifications'!D19 -> 3 | T3: ='Savings&Service Classifications'!D20 -> 3 | U3: ='Savings&Service Classifications'!D21 -> 2 | V3: ='Savings&Service Classifications'!D22 -> 2 | W3: ='Savings&Service Classifications'!D23 -> 2 | X3: ='Savings&Service Classifications'!D24 -> 2 | Y3: ='Savings&Service Classifications'!D25 -> 2 | Z3: ='Savings&Service Classifications'!D26 -> 2 | AA3: ='Savings&Service Classifications'!D27 -> -1 | AB3: ='Savings&Service Classifications'!D28 -> -1 | AC3: ='Savings&Service Classifications'!D29 -> -1 | AD3: ='Savings&Service Classifications'!D30 -> -1 | AE3: ='Savings&Service Classifications'!D31 -> -1 | AF3: ='Savings&Service Classifications'!D32 -> -1 | AG3: ='Savings&Service Classifications'!D33 -> -1 | AH3: ='Savings&Service Classifications'!D34 -> -2 | AI3: ='Savings&Service Classifications'!D35 -> 2 | AJ3: ='Savings&Service Classifications'!D36 -> 2 | AK3: ='Savings&Service Classifications'!D37 -> 2 | AL3: ='Savings&Service Classifications'!D38 -> 99 | AM3: ='Savings&Service Classifications'!D39 -> 3 | AN3: ='Savings&Service Classifications'!D40 -> 0 | AO3: ='Savings&Service Classifications'!D41 -> 0 | AP3: ='Savings&Service Classifications'!D42 -> 0 | AQ3: ='Savings&Service Classifications'!D43 -> 0 | AR3: ='Savings&Service Classifications'!D44 -> 0 | AS3: ='Savings&Service Classifications'!D45 -> 0 | AT3: ='Savings&Service Classifications'!D46 -> 0 | AU3: ='Savings&Service Classifications'!D47 -> 0 | AV3: ='Savings&Service Classifications'!D48 -> -2 | AW3: ='Savings&Service Classifications'!D49 -> -2 | AX3: ='Savings&Service Classifications'!D50 -> -2 | AY3: ='Savings&Service Classifications'!D51 -> 0 | AZ3: ='Savings&Service Classifications'!D52 -> 0 | BA3: ='Savings&Service Classifications'!D53 -> 3 | BB3: ='Savings&Service Classifications'!D54 -> 3 | BC3: ='Savings&Service Classifications'!D55 -> 3 | BD3: ='Savings&Service Classifications'!D56 -> 3 | BE3: ='Savings&Service Classifications'!D57 -> 3 | BF3: ='Savings&Service Classifications'!D58 -> 3 | BG3: ='Savings&Service Classifications'!D59 -> 3 | BH3: ='Savings&Service Classifications'!D60 -> 3 | BI3: ='Savings&Service Classifications'!D61 -> 3 | BJ3: ='Savings&Service Classifications'!D62 -> 3 | BK3: ='Savings&Service Classifications'!D63 -> 99 | BL3: ='Savings&Service Classifications'!D64 -> 99 | BM3: ='Savings&Service Classifications'!D65 -> 3 | BN3: ='Savings&Service Classifications'!D66 -> 0 | BO3: ='Savings&Service Classifications'!D67 -> 0 | BP3: ='Savings&Service Classifications'!D68 -> 0 | BQ3: ='Savings&Service Classifications'!D69 -> 0 | BR3: ='Savings&Service Classifications'!D70 -> 99 | BS3: ='Savings&Service Classifications'!D71 -> 99 | BT3: ='Savings&Service Classifications'!D73 -> -1 | BU3: ='Savings&Service Classifications'!D74 -> 2 | BV3: ='Savings&Service Classifications'!D75 -> 0 | BW3: ='Savings&Service Classifications'!D76 -> 99 | BX3: ='Savings&Service Classifications'!D77 -> 99 | BY3: ='Savings&Service Classifications'!D78 -> 99 | BZ3: ='Savings&Service Classifications'!D79 -> 99 | CA3: ='Savings&Service Classifications'!D80 -> 100 | CB3: ='Savings&Service Classifications'!D81 -> 100 | CC3: ='Savings&Service Classifications'!D82 -> 100 | CD3: ='Savings&Service Classifications'!D83 -> 100 | CE3: ='Savings&Service Classifications'!D84 -> 100 | CF3: ='Savings&Service Classifications'!D85 -> 100 | CG3: ='Savings&Service Classifications'!D86 -> 100 | CH3: ='Savings&Service Classifications'!D87 -> 100 | CI3: ='Savings&Service Classifications'!D88 -> 100
A4: Alternative Classification | C4: ='Savings&Service Classifications'!F3 -> 0 | D4: ='Savings&Service Classifications'!F4 -> 2 | E4: ='Savings&Service Classifications'!F5 -> 1 | F4: ='Savings&Service Classifications'!F6 -> 2 | G4: ='Savings&Service Classifications'!F7 -> -2 | H4: ='Savings&Service Classifications'!F8 -> 1 | I4: ='Savings&Service Classifications'!F9 -> -2 | J4: ='Savings&Service Classifications'!F10 -> -2 | K4: ='Savings&Service Classifications'!F11 -> -1 | L4: ='Savings&Service Classifications'!F12 -> -1 | M4: ='Savings&Service Classifications'!F13 -> -1 | N4: ='Savings&Service Classifications'!F14 -> -1 | O4: ='Savings&Service Classifications'!F15 -> -1 | P4: ='Savings&Service Classifications'!F16 -> -1 | Q4: ='Savings&Service Classifications'!F17 -> 1 | R4: ='Savings&Service Classifications'!F18 -> 2 | S4: ='Savings&Service Classifications'!F19 -> 3 | T4: ='Savings&Service Classifications'!F20 -> 3 | U4: ='Savings&Service Classifications'!F21 -> 2 | V4: ='Savings&Service Classifications'!F22 -> 2 | W4: ='Savings&Service Classifications'!F23 -> 2 | X4: ='Savings&Service Classifications'!F24 -> 2 | Y4: ='Savings&Service Classifications'!F25 -> 2 | Z4: ='Savings&Service Classifications'!F26 -> 2 | AA4: ='Savings&Service Classifications'!F27 -> -1 | AB4: ='Savings&Service Classifications'!F28 -> -1 | AC4: ='Savings&Service Classifications'!F29 -> -1 | AD4: ='Savings&Service Classifications'!F30 -> -1 | AE4: ='Savings&Service Classifications'!F31 -> -1 | AF4: ='Savings&Service Classifications'!F32 -> -1 | AG4: ='Savings&Service Classifications'!F33 -> -1 | AH4: ='Savings&Service Classifications'!F34 -> -2 | AI4: ='Savings&Service Classifications'!F35 -> 2 | AJ4: ='Savings&Service Classifications'!F36 -> 2 | AK4: ='Savings&Service Classifications'!F37 -> 2 | AL4: ='Savings&Service Classifications'!F38 -> 99 | AM4: ='Savings&Service Classifications'!F39 -> 3 | AN4: ='Savings&Service Classifications'!F40 -> 0 | AO4: ='Savings&Service Classifications'!F41 -> 0 | AP4: ='Savings&Service Classifications'!F42 -> 0 | AQ4: ='Savings&Service Classifications'!F43 -> 0 | AR4: ='Savings&Service Classifications'!F44 -> 0 | AS4: ='Savings&Service Classifications'!F45 -> 0 | AT4: ='Savings&Service Classifications'!F46 -> 0 | AU4: ='Savings&Service Classifications'!F47 -> 0 | AV4: ='Savings&Service Classifications'!F48 -> -2 | AW4: ='Savings&Service Classifications'!F49 -> -2 | AX4: ='Savings&Service Classifications'!F50 -> -2 | AY4: ='Savings&Service Classifications'!F51 -> 0 | AZ4: ='Savings&Service Classifications'!F52 -> 0 | BA4: ='Savings&Service Classifications'!F53 -> 3 | BB4: ='Savings&Service Classifications'!F54 -> 3 | BC4: ='Savings&Service Classifications'!F55 -> 3 | BD4: ='Savings&Service Classifications'!F56 -> 3 | BE4: ='Savings&Service Classifications'!F57 -> 3 | BF4: ='Savings&Service Classifications'!F58 -> 3 | BG4: ='Savings&Service Classifications'!F59 -> 3 | BH4: ='Savings&Service Classifications'!F60 -> 3 | BI4: ='Savings&Service Classifications'!F61 -> 3 | BJ4: ='Savings&Service Classifications'!F62 -> 3 | BK4: ='Savings&Service Classifications'!F63 -> 99 | BL4: ='Savings&Service Classifications'!F64 -> 99 | BM4: ='Savings&Service Classifications'!F65 -> 3 | BN4: ='Savings&Service Classifications'!F66 -> 0 | BO4: ='Savings&Service Classifications'!F67 -> 0 | BP4: ='Savings&Service Classifications'!F68 -> 0 | BQ4: ='Savings&Service Classifications'!F69 -> 0 | BR4: ='Savings&Service Classifications'!F70 -> 99 | BS4: ='Savings&Service Classifications'!F71 -> 99 | BT4: ='Savings&Service Classifications'!F73 -> -1 | BU4: ='Savings&Service Classifications'!F74 -> 2 | BV4: ='Savings&Service Classifications'!F75 -> 0 | BW4: ='Savings&Service Classifications'!F76 -> 99 | BX4: ='Savings&Service Classifications'!F77 -> 99 | BY4: ='Savings&Service Classifications'!F78 -> 99 | BZ4: ='Savings&Service Classifications'!F79 -> 99 | CA4: ='Savings&Service Classifications'!F80 -> 100 | CB4: ='Savings&Service Classifications'!F81 -> 100 | CC4: ='Savings&Service Classifications'!F82 -> 100 | CD4: ='Savings&Service Classifications'!F83 -> 100 | CE4: ='Savings&Service Classifications'!F84 -> 100 | CF4: ='Savings&Service Classifications'!F85 -> 100 | CG4: ='Savings&Service Classifications'!F86 -> 100 | CH4: ='Savings&Service Classifications'!F87 -> 100 | CI4: ='Savings&Service Classifications'!F88 -> 100
A5: Aberdeen City | B5: 229840 | C5: 20607 | D5: 76923 | E5: 62999 | F5: 18690 | G5: 6574 | H5: 27 | I5: 3546 | J5: 5360 | K5: 391 | L5: 651 | M5: 109 | N5: 8481 | O5: 2887 | P5: 922 | Q5: 5116 | R5: 574 | S5: 60 | T5: 43266 | U5: 55007 | V5: 6764 | W5: 21718 | X5: 4116 | Y5: 2069 | Z5: 4047 | AA5: 0 | AB5: 1727 | AC5: 3813 | AD5: 3393 | AE5: 363 | AF5: 267 | AG5: 337 | AH5: 0 | AI5: 0 | AJ5: 151 | AK5: 221 | AL5: 0 | AM5: 72 | AN5: 1656 | AO5: 7078 | AP5: 14962 | AQ5: 3016 | AR5: -889 | AS5: 166 | AT5: 479 | AU5: 4050 | AV5: -115 | AW5: 713 | AX5: 1335 | AY5: 1015 | AZ5: 7424 | BA5: 63 | BB5: 0 | BC5: 164 | BD5: 926 | BE5: 0 | BF5: 0 | BG5: 2124 | BH5: 3291 | BI5: 1374 | BJ5: 5706 | BK5: 1108 | BL5: 264 | BM5: 3263 | BN5: 91 | BO5: -762 | BP5: 183 | BQ5: 352 | BR5: 788 | BS5: 537 | BT5: 451 | BU5: 54 | BV5: -15 | BW5: 0 | BX5: 0 | BY5: 4724 | BZ5: 0 | CA5: -8730 | CB5: 1236 | CC5: -252 | CD5: 12971 | CE5: 3222 | CF5: 23073 | CG5: 397 | CH5: 167 | CI5: 0 | CJ5: =SUM(C5:CI5) -> 458908 | CM5: =SUMIFS($C5:$CI5, $C$3:$CI$3, -2) -> 17413 | CN5: =SUMIFS($C5:$CI5, $C$3:$CI$3, -1) -> 23792 | CO5: =SUMIFS($C5:$CI5, $C$3:$CI$3, 0) -> 59413 | CP5: =SUMIFS($C5:$CI5, $C$3:$CI$3, 1) -> 68142 | CQ5: =SUMIFS($C5:$CI5, $C$3:$CI$3, 2) -> 190334 | CR5: =SUMIFS($C5:$CI5, $C$3:$CI$3, 3) -> 60309 | CS5: =SUMIFS($C5:$CI5, $C$3:$CI$3, 99) -> 7421 | CT5: =SUMIFS($C5:$CI5, $C$3:$CI$3, 100) -> 32084 | CU5: =SUM(CM5:CT5) -> 458908 | CW5: =(CM5/$CU5) -> 0.03794442459 | CX5: 0.05184481421 | CY5: 0.1294660368 | CZ5: 0.1484872785 | DA5: 0.4147541555 | DB5: 0.1314184978 | DC5: 0.01617099724 | DD5: 0.06991379536 | DF5: =SUMIFS($C5:$CI5,$C$4:$CI$4,-2) -> 17413 | DG5: =SUMIFS($C5:$CI5,$C$4:$CI$4,-1) -> 23792 | DH5: =SUMIFS($C5:$CI5,$C$4:$CI$4,0) -> 59413 | DI5: =SUMIFS($C5:$CI5,$C$4:$CI$4,1) -> 68142 | DJ5: =SUMIFS($C5:$CI5,$C$4:$CI$4,2) -> 190334 | DK5: =SUMIFS($C5:$CI5,$C$4:$CI$4,3) -> 60309 | DL5: =SUMIFS($C5:$CI5,$C$4:$CI$4,99) -> 7421 | DM5: =SUMIFS($C5:$CI5,$C$4:$CI$4,100) -> 32084 | DN5: =SUM(DF5:DM5) -> 458908 | DP5: =DF5/$DN5 -> 0.03794442459 | DQ5: 0.05184481421 | DR5: 0.1294660368 | DS5: 0.1484872785 | DT5: 0.4147541555 | DU5: 0.1314184978 | DV5: 0.01617099724 | DW5: 0.06991379536
A6: Aberdeenshire | B6: 262190 | C6: 18408 | D6: 106841 | E6: 98497 | F6: 33696 | G6: 3373 | H6: 60 | I6: 1231 | J6: 1154 | K6: 0 | L6: 400 | M6: 354 | N6: 5204 | O6: 5430 | P6: 2164 | Q6: 4489 | R6: 1589.566882 | S6: 5 | T6: 28762 | U6: 62688.15823 | V6: 3995.42727 | W6: 32742.41883 | X6: 4929.691084 | Y6: 1803.383724 | Z6: 549.0022605 | AA6: 0 | AB6: 4378 | AC6: 2331 | AD6: 2251 | AE6: 0 | AF6: 374 | AG6: 1750 | AH6: -7 | AI6: 0 | AJ6: 146 | AK6: 4113 | AL6: 4121 | AM6: 520 | AN6: 1148 | AO6: 7012 | AP6: 16137 | AQ6: 2845 | AR6: 421 | AS6: 96 | AT6: 739 | AU6: 3611 | AV6: 125 | AW6: 1959 | AX6: 1068 | AY6: 2053 | AZ6: 1561 | BA6: 0 | BB6: 454 | BC6: 486 | BD6: 746 | BE6: 233 | BF6: 219 | BG6: 3214 | BH6: 684 | BI6: 0 | BJ6: 914 | BK6: 2115 | BL6: 259 | BM6: 2066 | BN6: 0 | BO6: 394 | BP6: -105 | BQ6: 364 | BR6: 1014 | BS6: 536 | BT6: 0 | BU6: 0 | BV6: 415 | BW6: 7735 | BX6: 0 | BY6: 1518 | BZ6: 2201 | CA6: 0 | CB6: 2229 | CC6: -50 | CD6: 11861 | CE6: 2759 | CF6: 23336 | CG6: 811 | CH6: 122 | CI6: 0 | CJ6: =SUM(C6:CI6) -> 543647.6483 | CM6: =SUMIFS($C6:$CI6, $C$3:$CI$3, -2) -> 8903 | CN6: =SUMIFS($C6:$CI6, $C$3:$CI$3, -1) -> 24636 | CO6: =SUMIFS($C6:$CI6, $C$3:$CI$3, 0) -> 55099 | CP6: =SUMIFS($C6:$CI6, $C$3:$CI$3, 1) -> 103046 | CQ6: =SUMIFS($C6:$CI6, $C$3:$CI$3, 2) -> 253093.6483 | CR6: =SUMIFS($C6:$CI6, $C$3:$CI$3, 3) -> 38303 | CS6: =SUMIFS($C6:$CI6, $C$3:$CI$3, 99) -> 19499 | CT6: =SUMIFS($C6:$CI6, $C$3:$CI$3, 100) -> 41068 | CU6: =SUM(CM6:CT6) -> 543647.6483 | CW6: =(CM6/$CU6) -> 0.01637641592 | CX6: =(CN6/$CU6) -> 0.0453161162 | CY6: =(CO6/$CU6) -> 0.1013505718 | CZ6: =(CP6/$CU6) -> 0.1895455638 | DA6: =(CQ6/$CU6) -> 0.4655472144 | DB6: =(CR6/$CU6) -> 0.07045556092 | DC6: =(CS6/$CU6) -> 0.03586698124 | DD6: =(CT6/$CU6) -> 0.07554157574 | DF6: =SUMIFS($C6:$CI6,$C$4:$CI$4,-2) -> 8903 | DG6: =SUMIFS($C6:$CI6,$C$4:$CI$4,-1) -> 24636 | DH6: =SUMIFS($C6:$CI6,$C$4:$CI$4,0) -> 55099 | DI6: =SUMIFS($C6:$CI6,$C$4:$CI$4,1) -> 103046 | DJ6: =SUMIFS($C6:$CI6,$C$4:$CI$4,2) -> 253093.6483 | DK6: =SUMIFS($C6:$CI6,$C$4:$CI$4,3) -> 38303 | DL6: =SUMIFS($C6:$CI6,$C$4:$CI$4,99) -> 19499 | DM6: =SUMIFS($C6:$CI6,$C$4:$CI$4,100) -> 41068 | DN6: =SUM(DF6:DM6) -> 543647.6483 | DP6: 0.01637641592 | DQ6: 0.0453161162 | DR6: 0.1013505718 | DS6: 0.1895455638 | DT6: 0.4655472144 | DU6: 0.07045556092 | DV6: 0.03586698124 | DW6: 0.07554157574
A7: Angus | B7: 116520 | C7: 8907 | D7: 42872 | E7: 43319 | F7: 9659 | G7: 589 | H7: 2000 | I7: 322 | J7: 392 | K7: 0 | L7: 0 | M7: 345 | N7: 4713 | O7: 3209 | P7: 34 | Q7: 672 | R7: 880 | S7: 43 | T7: 19026 | U7: 27062 | V7: 1956 | W7: 6705 | X7: 1514 | Y7: 683 | Z7: 1737 | AA7: 0 | AB7: 2861 | AC7: 4119 | AD7: 914 | AE7: 0 | AF7: 435 | AG7: 0 | AH7: -204 | AI7: 0 | AJ7: 0 | AK7: 1919 | AL7: 402 | AM7: 108 | AN7: 673 | AO7: 3684 | AP7: 6603 | AQ7: 3368 | AR7: -588 | AS7: 43 | AT7: 186 | AU7: 2363 | AV7: -52 | AW7: -12 | AX7: 438 | AY7: 663 | AZ7: 1280 | BA7: 10 | BB7: 0 | BC7: 107 | BD7: 29 | BE7: -279 | BF7: 225 | BG7: 1220 | BH7: 6052 | BI7: 422 | BJ7: 1644 | BK7: 214 | BL7: 76 | BM7: 2049 | BN7: 118 | BO7: -2 | BP7: 62 | BQ7: 182 | BR7: 432 | BS7: 288 | BT7: 353 | BU7: 0 | BV7: 119 | BW7: 3165 | BX7: 0 | BY7: 0 | BZ7: 7248 | CA7: -300 | CB7: 783 | CC7: -350 | CD7: 7775 | CE7: 3070 | CF7: 17184 | CG7: 0 | CH7: 101 | CI7: 0 | CJ7: 257839 | CM7: 1473 | CN7: 16983 | CO7: 27661 | CP7: 45991 | CQ7: 94987 | CR7: 30656 | CS7: 11825 | CT7: 28263 | CU7: 257839 | CW7: 0.005712867332 | CX7: 0.06586668425 | CY7: 0.1072801244 | CZ7: 0.178370999 | DA7: 0.3683965575 | DB7: 0.1188959002 | DC7: 0.04586195261 | DD7: 0.1096149147 | DF7: 1473 | DG7: 16983 | DH7: 27661 | DI7: 45991 | DJ7: 94987 | DK7: 30656 | DL7: 11825 | DM7: 28263 | DN7: 257839 | DP7: 0.005712867332 | DQ7: 0.06586668425 | DR7: 0.1072801244 | DS7: 0.178370999 | DT7: 0.3683965575 | DU7: 0.1188959002 | DV7: 0.04586195261 | DW7: 0.1096149147
A8: Argyll & Bute | B8: 87130 | C8: 9200 | D8: 38698 | E8: 39161 | F8: 11195 | G8: 1947 | H8: 0 | I8: 23 | J8: 1889 | K8: 0 | L8: 55 | M8: 0 | N8: 1321 | O8: 1788 | P8: 647 | Q8: 1259 | R8: 0 | S8: 37 | T8: 12207 | U8: 38286 | V8: 2228 | W8: 15467 | X8: 2815 | Y8: 542 | Z8: 1252 | AA8: 63 | AB8: 1600 | AC8: 5076 | AD8: 1161 | AE8: 209 | AF8: 123 | AG8: 641 | AH8: -443 | AI8: 607 | AJ8: 177 | AK8: 2997 | AL8: 0 | AM8: 145 | AN8: 457 | AO8: 2714 | AP8: 10311 | AQ8: 1449 | AR8: 496 | AS8: 186 | AT8: 333 | AU8: 1927 | AV8: 211 | AW8: 555 | AX8: 536 | AY8: 114 | AZ8: 2189 | BA8: -19 | BB8: 27 | BC8: 237 | BD8: 188 | BE8: 523 | BF8: 0 | BG8: 1513 | BH8: 1089 | BI8: 276 | BJ8: 2177 | BK8: 407 | BL8: 195 | BM8: 802 | BN8: 111 | BO8: 52 | BP8: 83 | BQ8: 130 | BR8: 885 | BS8: 287 | BT8: 0 | BU8: 44 | BV8: 222 | BW8: 3746 | BX8: 0 | BY8: 1873 | BZ8: 1361 | CA8: 0 | CB8: 0 | CC8: -119 | CD8: 7692 | CE8: 2130 | CF8: 14582 | CG8: 0 | CH8: 88 | CI8: 0 | CJ8: 254433 | CM8: 4718 | CN8: 12684 | CO8: 29974 | CP8: 40420 | CQ8: 114308 | CR8: 19202 | CS8: 8754 | CT8: 24373 | CU8: 254433 | CW8: 0.01854319212 | CX8: 0.04985202391 | CY8: 0.1178070455 | CZ8: 0.1588630406 | DA8: 0.449265622 | DB8: 0.07546977004 | DC8: 0.03440591433 | DD8: 0.09579339158 | DF8: 4718 | DG8: 12684 | DH8: 29974 | DI8: 40420 | DJ8: 114308 | DK8: 19202 | DL8: 8754 | DM8: 24373 | DN8: 254433 | DP8: 0.01854319212 | DQ8: 0.04985202391 | DR8: 0.1178070455 | DS8: 0.1588630406 | DT8: 0.449265622 | DU8: 0.07546977004 | DV8: 0.03440591433 | DW8: 0.09579339158
A9: Clackmannanshire | B9: 51350 | C9: 4955.011201 | D9: 18471.17617 | E9: 15519.07943 | F9: 7742.667656 | G9: 396.7189232 | H9: 41 | I9: 0 | J9: 246.6777348 | K9: 0 | L9: 440.3824224 | M9: 662.9963449 | N9: 405.7883933 | O9: 1055.639347 | P9: 389.8549389 | Q9: 1127.399507 | R9: 265.7643101 | S9: 43.14586986 | T9: 11718.43116 | U9: 11245.11206 | V9: 712.7020655 | W9: 4750.878034 | X9: 2076.571376 | Y9: 196.0954468 | Z9: 1608.408763 | AA9: 78.76494234 | AB9: 786.7002068 | AC9: 742.2796284 | AD9: 499.1845322 | AE9: 45 | AF9: 160.6512447 | AG9: 81.78350874 | AH9: 66.75616774 | AI9: 0 | AJ9: 91.2503823 | AK9: 331.3203823 | AL9: 50.47 | AM9: 112.025 | AN9: 174.7842032 | AO9: 1466.825929 | AP9: 2436.245481 | AQ9: 727.3744707 | AR9: 31.39946472 | AS9: 0 | AT9: 185.84 | AU9: 604.0783222 | AV9: -4.477411975 | AW9: 103.282964 | AX9: 124.0371052 | AY9: 0.612015872 | AZ9: 949.6827875 | BA9: 0 | BB9: 12.99803009 | BC9: 0 | BD9: 0 | BE9: 117.950624 | BF9: 1015.283753 | BG9: 217.3576151 | BH9: 71.17461315 | BI9: 42.1140234 | BJ9: 198.0626827 | BK9: 131.599316 | BL9: 75.76706318 | BM9: 282.1695611 | BN9: 90.45233041 | BO9: 52.21106789 | BP9: 198.8245609 | BQ9: 127 | BR9: 127 | BS9: 127 | BT9: 0 | BU9: 12.964 | BV9: 91.58324231 | BW9: 2319.793027 | BX9: 0 | BY9: 1312 | BZ9: 105.9155734 | CA9: 0 | CB9: 0 | CC9: -91 | CD9: 9836 | CE9: 893 | CF9: 7288.587164 | CG9: 0 | CH9: 0 | CI9: 0 | CJ9: 118573.1807 | CM9: 932.995483 | CN9: 5349.025509 | CO9: 12091.92508 | CP9: 16687.47894 | CQ9: 47504.91065 | CR9: 13830.71293 | CS9: 4249.54498 | CT9: 17926.58716 | CU9: 118573.1807 | CW9: 0.007868520328 | CX9: 0.04511159671 | CY9: 0.1019785841 | CZ9: 0.1407356945 | DA9: 0.4006379044 | DB9: 0.1166428432 | DC9: 0.03583900637 | DD9: 0.1511858504 | DF9: 932.995483 | DG9: 5349.025509 | DH9: 12091.92508 | DI9: 16687.47894 | DJ9: 47504.91065 | DK9: 13830.71293 | DL9: 4249.54498 | DM9: 17926.58716 | DN9: 118573.1807 | DP9: 0.007868520328 | DQ9: 0.04511159671 | DR9: 0.1019785841 | DS9: 0.1407356945 | DT9: 0.4006379044 | DU9: 0.1166428432 | DV9: 0.03583900637 | DW9: 0.1511858504
A10: Dumfries & Galloway | B10: 149520 | C10: 11929 | D10: 62176 | E10: 60768 | F10: 7913 | G10: 3057 | H10: 84 | I10: 1686 | J10: 103 | K10: 351 | L10: 230 | M10: 321 | N10: 4573 | O10: 2724 | P10: 339 | Q10: 2925 | R10: 1934 | S10: 0 | T10: 17713 | U10: 37603 | V10: 7239 | W10: 18653 | X10: 3437 | Y10: 284 | Z10: 3076 | AA10: 0 | AB10: 1414 | AC10: 4514 | AD10: 994 | AE10: 261 | AF10: 0 | AG10: 1509 | AH10: 214 | AI10: 0 | AJ10: 0 | AK10: 3709 | AL10: 209 | AM10: 588 | AN10: 568 | AO10: 5150 | AP10: 8726 | AQ10: 1779 | AR10: 339 | AS10: 0 | AT10: 271 | AU10: 2898 | AV10: -217 | AW10: 307 | AX10: 632 | AY10: 90 | AZ10: 3417 | BA10: 0 | BB10: -41 | BC10: 44 | BD10: 0 | BE10: 3481 | BF10: 326 | BG10: 855 | BH10: 4278 | BI10: 1044 | BJ10: 463 | BK10: 331 | BL10: 680 | BM10: 775 | BN10: 496 | BO10: 37 | BP10: 132 | BQ10: 299 | BR10: 500 | BS10: 424 | BT10: 108 | BU10: 0 | BV10: 84 | BW10: 6136 | BX10: 0 | BY10: 4237 | BZ10: 1371 | CA10: 0 | CB10: 0 | CC10: 0 | CD10: 14748 | CE10: 2632 | CF10: 18641 | CG10: 0 | CH10: 100 | CI10: 0 | CJ10: 348671 | CM10: 5782 | CN10: 17338 | CO10: 36215 | CP10: 63777 | CQ10: 146024 | CR10: 29526 | CS10: 13888 | CT10: 36121 | CU10: 348671 | CW10: 0.0165829679 | CX10: 0.04972595943 | CY10: 0.1038658219 | CZ10: 0.1829145527 | DA10: 0.4188016784 | DB10: 0.08468154793 | DC10: 0.03983124493 | DD10: 0.1035962268 | DF10: 5782 | DG10: 17338 | DH10: 36215 | DI10: 63777 | DJ10: 146024 | DK10: 29526 | DL10: 13888 | DM10: 36121 | DN10: 348671 | DP10: 0.0165829679 | DQ10: 0.04972595943 | DR10: 0.1038658219 | DS10: 0.1829145527 | DT10: 0.4188016784 | DU10: 0.08468154793 | DV10: 0.03983124493 | DW10: 0.1035962268
A11: Dundee City | B11: 148270 | C11: 13527 | D11: 51214 | E11: 49433 | F11: 15473 | G11: 5244 | H11: 0 | I11: 1648 | J11: 1964 | K11: 0 | L11: 349 | M11: 1166 | N11: 3046 | O11: 1912 | P11: 1690 | Q11: 4808 | R11: 705 | S11: 67 | T11: 35880 | U11: 40373 | V11: 7707 | W11: 23608 | X11: 4992 | Y11: 871 | Z11: 4501 | AA11: 0 | AB11: 1323 | AC11: 1489 | AD11: 829 | AE11: 0 | AF11: 1328 | AG11: 0 | AH11: -1917 | AI11: 0 | AJ11: 20 | AK11: 776 | AL11: 183 | AM11: 0 | AN11: 278 | AO11: 4177 | AP11: 9964 | AQ11: 2706 | AR11: 213 | AS11: 5 | AT11: 156 | AU11: 2002 | AV11: -183 | AW11: -55 | AX11: 867 | AY11: 0 | AZ11: 7295 | BA11: 0 | BB11: 0 | BC11: 0 | BD11: 1045 | BE11: 1019 | BF11: 853 | BG11: 1716 | BH11: 653 | BI11: 0 | BJ11: 643 | BK11: 669 | BL11: 142 | BM11: 2086 | BN11: 0 | BO11: -256 | BP11: 20 | BQ11: 162 | BR11: 551.9646 | BS11: 362.0354 | BT11: 555 | BU11: 0 | BV11: 10 | BW11: 3119 | BX11: 0 | BY11: 2478 | BZ11: -6105 | CA11: -296 | CB11: 1445 | CC11: -150 | CD11: 9073.257814 | CE11: 3033 | CF11: 22056.8279 | CG11: 0 | CH11: 101 | CI11: 489 | CJ11: 347109.0857 | CM11: 7568 | CN11: 13687 | CO11: 40259 | CP11: 54241 | CQ11: 150240 | CR11: 43962 | CS11: 1400 | CT11: 35752.08572 | CU11: 347109.0857 | CW11: 0.02180294412 | CX11: 0.03943140806 | CY11: 0.1159837113 | CZ11: 0.1562649963 | DA11: 0.4328322311 | DB11: 0.1266518274 | DC11: 0.004033314187 | DD11: 0.1029995675 | DF11: 7568 | DG11: 13687 | DH11: 40259 | DI11: 54241 | DJ11: 150240 | DK11: 43962 | DL11: 1400 | DM11: 35752.08572 | DN11: 347109.0857 | DP11: 0.02180294412 | DQ11: 0.03943140806 | DR11: 0.1159837113 | DS11: 0.1562649963 | DT11: 0.4328322311 | DU11: 0.1266518274 | DV11: 0.004033314187 | DW11: 0.1029995675
A12: East Ayrshire | B12: 122200 | C12: 14330 | D12: 44031 | E12: 46088 | F12: 16630 | G12: 3080 | H12: 37 | I12: 738 | J12: 539 | K12: 0 | L12: 1214 | M12: 275 | N12: 1073 | O12: 802 | P12: 1525 | Q12: 1411 | R12: 2016 | S12: 33 | T12: 24972 | U12: 29649 | V12: 4239 | W12: 10206 | X12: 2243 | Y12: 202 | Z12: 2472 | AA12: 0 | AB12: 914 | AC12: 5255 | AD12: 2006 | AE12: 260 | AF12: 1639 | AG12: 18 | AH12: -315 | AI12: 1 | AJ12: 242 | AK12: 1873 | AL12: 11 | AM12: 351 | AN12: 425 | AO12: 3331 | AP12: 3848 | AQ12: 1733 | AR12: 440 | AS12: 0 | AT12: 192 | AU12: 1586 | AV12: 272 | AW12: 1186 | AX12: 932 | AY12: 424 | AZ12: 1917 | BA12: 0 | BB12: 0 | BC12: 175 | BD12: 246 | BE12: 574 | BF12: 729 | BG12: 969 | BH12: 6501 | BI12: 0 | BJ12: 708 | BK12: 372 | BL12: 147 | BM12: 1106 | BN12: 79 | BO12: -25 | BP12: 27 | BQ12: 271 | BR12: 236 | BS12: 127 | BT12: 139 | BU12: 97 | BV12: 316 | BW12: 2908 | BX12: 0 | BY12: 0 | BZ12: 55 | CA12: 0 | CB12: 0 | CC12: -180 | CD12: 7533 | CE12: 1678 | CF12: 15506 | CG12: 310 | CH12: 197 | CI12: 0 | CJ12: 277147 | CM12: 6432 | CN12: 15120 | CO12: 28894 | CP12: 47536 | CQ12: 113901 | CR12: 36364 | CS12: 3856 | CT12: 25044 | CU12: 277147 | CW12: 0.0232079005 | CX12: 0.0545558855 | CY12: 0.1042551426 | CZ12: 0.1715190855 | DA12: 0.4109768462 | DB12: 0.1312083479 | DC12: 0.01391319408 | DD12: 0.09036359766 | DF12: 6432 | DG12: 15120 | DH12: 28894 | DI12: 47536 | DJ12: 113901 | DK12: 36364 | DL12: 3856 | DM12: 25044 | DN12: 277147 | DP12: 0.0232079005 | DQ12: 0.0545558855 | DR12: 0.1042551426 | DS12: 0.1715190855 | DT12: 0.4109768462 | DU12: 0.1312083479 | DV12: 0.01391319408 | DW12: 0.09036359766
A13: East Dunbartonshire | B13: 107540 | C13: 8010 | D13: 42904.286 | E13: 54078.88 | F13: 11562.73 | G13: 1830.754 | H13: 509.615 | I13: 170.172 | J13: 277.852 | K13: 60 | L13: 38.157 | M13: 321.529 | N13: 2148.786 | O13: 3067.123 | P13: 1326.645 | Q13: 2104.079 | R13: -4483 | S13: 3 | T13: 13814 | U13: 27073 | V13: 3625 | W13: 13981 | X13: 2409 | Y13: 291 | Z13: 823 | AA13: 8.461 | AB13: 373.669 | AC13: 2793.786 | AD13: 1159.177 | AE13: 473.064 | AF13: 823.9 | AG13: 0.008 | AH13: 507.154 | AI13: 0 | AJ13: 413.83 | AK13: 1649.17 | AL13: 0 | AM13: 269.242 | AN13: 717.232 | AO13: 3375.252 | AP13: 6707.123 | AQ13: 866.971 | AR13: -10.548 | AS13: 0 | AT13: 220.206 | AU13: 1424.279 | AV13: 390.35 | AW13: 177.369 | AX13: 1506.765 | AY13: 1.741 | AZ13: 2335.227 | BA13: 0 | BB13: 817.907 | BC13: -335 | BD13: 0 | BE13: 337.026 | BF13: 348.797 | BG13: 1058.167 | BH13: 75.115 | BI13: 186.964 | BJ13: 910.793 | BK13: 55.137 | BL13: 0 | BM13: 771.348 | BN13: 41.533 | BO13: -83.974 | BP13: 0 | BQ13: 187.34 | BR13: 290.7 | BS13: 167.96 | BT13: 97 | BU13: 0 | BV13: 24.259 | BW13: 2686.949 | BX13: 0 | BY13: 1096.644 | BZ13: -596.732 | CA13: 0 | CB13: 0 | CC13: 0 | CD13: 8494 | CE13: 2098 | CF13: 14249 | CG13: 0 | CH13: 123 | CI13: 0 | CJ13: 245231.969 | CM13: 4860.416 | CN13: 12691.305 | CO13: 23816.641 | CP13: 56692.574 | CQ13: 100249.016 | CR13: 18257.359 | CS13: 3700.658 | CT13: 24964 | CU13: 245231.969 | CW13: 0.01981966715 | CX13: 0.05175224524 | CY13: 0.0971188263 | CZ13: 0.2311793778 | DA13: 0.4087926073 | DB13: 0.0744493431 | DC13: 0.01509043872 | DD13: 0.1017974944 | DF13: 4860.416 | DG13: 12691.305 | DH13: 23816.641 | DI13: 56692.574 | DJ13: 100249.016 | DK13: 18257.359 | DL13: 3700.658 | DM13: 24964 | DN13: 245231.969 | DP13: 0.01981966715 | DQ13: 0.05175224524 | DR13: 0.0971188263 | DS13: 0.2311793778 | DT13: 0.4087926073 | DU13: 0.0744493431 | DV13: 0.01509043872 | DW13: 0.1017974944
A14: East Lothian | B14: 104090 | C14: 6106 | D14: 40668 | E14: 37275 | F14: 8348 | G14: 284 | H14: 261 | I14: 841 | J14: 1196 | K14: 405 | L14: 0 | M14: 782 | N14: 4297 | O14: 3062 | P14: 3710 | Q14: 2082 | R14: 2667 | S14: 0 | T14: 14938 | U14: 25536 | V14: 4552 | W14: 13840 | X14: 2011 | Y14: 406 | Z14: 0 | AA14: 0 | AB14: 1269 | AC14: 865 | AD14: 1218 | AE14: 299 | AF14: 0 | AG14: 103 | AH14: 51 | AI14: 0 | AJ14: 56 | AK14: 1141 | AL14: 201 | AM14: 0 | AN14: 281 | AO14: 3784 | AP14: 3440 | AQ14: 1963 | AR14: -309 | AS14: 0 | AT14: 131 | AU14: 1230 | AV14: 0 | AW14: 102 | AX14: 892 | AY14: 0 | AZ14: 4761 | BA14: 0 | BB14: 261 | BC14: 68 | BD14: 0 | BE14: 471 | BF14: 261 | BG14: 1828 | BH14: 830 | BI14: 180 | BJ14: 1284 | BK14: 614 | BL14: 111 | BM14: 1444 | BN14: 125 | BO14: -45 | BP14: 42 | BQ14: 161 | BR14: 255 | BS14: 229 | BT14: 132 | BU14: 160 | BV14: 311 | BW14: 1938 | BX14: 0 | BY14: 0 | BZ14: 1937 | CA14: 0 | CB14: 0 | CC14: -207 | CD14: 12258 | CE14: 1627 | CF14: 9916 | CG14: 0 | CH14: 90 | CI14: 0 | CJ14: 231026 | CM14: 3366 | CN14: 16142 | CO14: 21981 | CP14: 39618 | CQ14: 99385 | CR14: 21565 | CS14: 5285 | CT14: 23684 | CU14: 231026 | CW14: 0.01456978868 | CX14: 0.06987092362 | CY14: 0.09514513518 | CZ14: 0.1714871919 | DA14: 0.4301896756 | DB14: 0.09334447205 | DC14: 0.02287621307 | DD14: 0.1025165999 | DF14: 3366 | DG14: 16142 | DH14: 21981 | DI14: 39618 | DJ14: 99385 | DK14: 21565 | DL14: 5285 | DM14: 23684 | DN14: 231026 | DP14: 0.01456978868 | DQ14: 0.06987092362 | DR14: 0.09514513518 | DS14: 0.1714871919 | DT14: 0.4301896756 | DU14: 0.09334447205 | DV14: 0.02287621307 | DW14: 0.1025165999
A15: East Renfrewshire | B15: 93810 | C15: 10028 | D15: 45004 | E15: 51016 | F15: 7558 | G15: 1427 | H15: 1 | I15: 77 | J15: 392 | K15: 20 | L15: 0 | M15: 0 | N15: 3358 | O15: 1692 | P15: 2932 | Q15: 1343 | R15: 1006 | S15: 0 | T15: 9727 | U15: 22128 | V15: 4910 | W15: 8791 | X15: 1611 | Y15: 296 | Z15: 618 | AA15: 0 | AB15: 900 | AC15: 4857 | AD15: 1443 | AE15: 292 | AF15: 236 | AG15: 0 | AH15: 165 | AI15: 0 | AJ15: 173 | AK15: 1360 | AL15: 215 | AM15: 157 | AN15: 861 | AO15: 3745 | AP15: 3809 | AQ15: 958 | AR15: 78 | AS15: 0 | AT15: 70 | AU15: 837 | AV15: 162 | AW15: 340 | AX15: 866 | AY15: 10 | AZ15: 1384 | BA15: 0 | BB15: 197 | BC15: 178 | BD15: 0 | BE15: -18 | BF15: 104 | BG15: 1156 | BH15: 0 | BI15: 123 | BJ15: 2376 | BK15: 514 | BL15: 74 | BM15: 639 | BN15: 80 | BO15: 63 | BP15: 129 | BQ15: 119 | BR15: 164 | BS15: 175 | BT15: 92 | BU15: 0 | BV15: 285 | BW15: 2427 | BX15: 0 | BY15: 1200 | BZ15: 0 | CA15: 0 | CB15: 1600 | CC15: -305 | CD15: 6640 | CE15: 4423 | CF15: 10211 | CG15: 113 | CH15: 140 | CI15: 500 | CJ15: 230252 | CM15: 3429 | CN15: 15822 | CO15: 22456 | CP15: 52360 | CQ15: 93455 | CR15: 14639 | CS15: 4769 | CT15: 23322 | CU15: 230252 | CW15: 0.01489237878 | CX15: 0.0687160155 | CY15: 0.09752792592 | CZ15: 0.2274030193 | DA15: 0.4058813821 | DB15: 0.06357816653 | DC15: 0.02071208936 | DD15: 0.1012890225 | DF15: 3429 | DG15: 15822 | DH15: 22456 | DI15: 52360 | DJ15: 93455 | DK15: 14639 | DL15: 4769 | DM15: 23322 | DN15: 230252 | DP15: 0.01489237878 | DQ15: 0.0687160155 | DR15: 0.09752792592 | DS15: 0.2274030193 | DT15: 0.4058813821 | DU15: 0.06357816653 | DV15: 0.02071208936 | DW15: 0.1012890225
A16: Edinburgh, City of | B16: 507170 | C16: 31166 | D16: 135285 | E16: 120170 | F16: 47883 | G16: 12533 | H16: 21 | I16: 2907 | J16: 2305 | K16: 6235 | L16: 0 | M16: 465 | N16: 6969 | O16: 2965 | P16: 105 | Q16: 9983 | R16: 1997 | S16: 31 | T16: 91306 | U16: 97072 | V16: 33867 | W16: 65066 | X16: 14813 | Y16: 1304 | Z16: 10067 | AA16: 0 | AB16: 2889 | AC16: 6146 | AD16: 4444 | AE16: 1623 | AF16: 0 | AG16: 2112 | AH16: 0 | AI16: 0 | AJ16: 988 | AK16: 2544 | AL16: 5146 | AM16: 303 | AN16: 1850 | AO16: 15938 | AP16: 14826 | AQ16: 13536 | AR16: -445 | AS16: 0 | AT16: 739 | AU16: 12797 | AV16: 326 | AW16: 2214 | AX16: 2384 | AY16: 532 | AZ16: 10389 | BA16: 16 | BB16: 0 | BC16: 0 | BD16: 2107 | BE16: 6322 | BF16: -6384 | BG16: 13225 | BH16: 14665 | BI16: 8 | BJ16: 2410 | BK16: 1524 | BL16: 247 | BM16: 4403 | BN16: 316 | BO16: -864 | BP16: 21 | BQ16: 893 | BR16: 1414 | BS16: 1264 | BT16: 817 | BU16: 0 | BV16: -113 | BW16: 7071 | BX16: 0 | BY16: 9085 | BZ16: 21251 | CA16: -6098 | CB16: 0 | CC16: -10898 | CD16: 55948 | CE16: 9448 | CF16: 74751 | CG16: 0 | CH16: 200 | CI16: 9228 | CJ16: 1008073 | CM16: 22669 | CN16: 34770 | CO16: 101581 | CP16: 130174 | CQ16: 410886 | CR16: 128412 | CS16: 47002 | CT16: 132579 | CU16: 1008073 | CW16: 0.02248745875 | CX16: 0.03449154972 | CY16: 0.1007675039 | CZ16: 0.1291315212 | DA16: 0.4075954817 | DB16: 0.1273836319 | DC16: 0.0466255916 | DD16: 0.1315172612 | DF16: 22669 | DG16: 34770 | DH16: 101581 | DI16: 130174 | DJ16: 410886 | DK16: 128412 | DL16: 47002 | DM16: 132579 | DN16: 1008073 | DP16: 0.02248745875 | DQ16: 0.03449154972 | DR16: 0.1007675039 | DS16: 0.1291315212 | DT16: 0.4075954817 | DU16: 0.1273836319 | DV16: 0.0466255916 | DW16: 0.1315172612
A17: Eilean Siar | B17: 26900 | C17: 3216 | D17: 17894 | E17: 16077 | F17: 4794 | G17: 770 | H17: 235 | I17: 650 | J17: 631 | K17: 0 | L17: 85 | M17: 26 | N17: 1198 | O17: 56 | P17: 322 | Q17: 844 | R17: 595 | S17: 14 | T17: 3402 | U17: 14815 | V17: 855 | W17: 3788 | X17: 276 | Y17: 115 | Z17: 415 | AA17: 0 | AB17: 1350 | AC17: 1946 | AD17: 277 | AE17: 0 | AF17: 62 | AG17: 0 | AH17: 33 | AI17: 0 | AJ17: 0 | AK17: 3342 | AL17: 364 | AM17: 263 | AN17: 164 | AO17: 1538 | AP17: 2964 | AQ17: 453 | AR17: 80 | AS17: 36 | AT17: 0 | AU17: 780 | AV17: 275 | AW17: 292 | AX17: 322 | AY17: -215 | AZ17: 2162 | BA17: 1 | BB17: 0 | BC17: 478 | BD17: 0 | BE17: 24 | BF17: 0 | BG17: 446 | BH17: 828 | BI17: 0 | BJ17: 676 | BK17: 291 | BL17: 127 | BM17: 138 | BN17: 44 | BO17: 14 | BP17: 6 | BQ17: 79 | BR17: 170 | BS17: 57 | BT17: 23 | BU17: 144 | BV17: 25 | BW17: 2388 | BX17: 0 | BY17: 737 | BZ17: 0 | CA17: -25 | CB17: 522 | CC17: -100 | CD17: 6077 | CE17: 0 | CF17: 8421 | CG17: 154 | CH17: 86 | CI17: 200 | CJ17: 109592 | CM17: 2973 | CN17: 5345 | CO17: 11346 | CP17: 17156 | CQ17: 47033 | CR17: 6270 | CS17: 4134 | CT17: 15335 | CU17: 109592 | CW17: 0.02712789255 | CX17: 0.04877180816 | CY17: 0.1035294547 | CZ17: 0.1565442733 | DA17: 0.4291645376 | DB17: 0.05721220527 | DC17: 0.03772173151 | DD17: 0.1399280969 | DF17: 2973 | DG17: 5345 | DH17: 11346 | DI17: 17156 | DJ17: 47033 | DK17: 6270 | DL17: 4134 | DM17: 15335 | DN17: 109592 | DP17: 0.02712789255 | DQ17: 0.04877180816 | DR17: 0.1035294547 | DS17: 0.1565442733 | DT17: 0.4291645376 | DU17: 0.05721220527 | DV17: 0.03772173151 | DW17: 0.1399280969
A18: Falkirk | B18: 159380 | C18: 15101 | D18: 57232 | E18: 63056 | F18: 18858 | G18: 3257 | H18: 0 | I18: 540 | J18: 1443 | K18: 0 | L18: 52 | M18: 563 | N18: 4849 | O18: 2933 | P18: 491 | Q18: 2848 | R18: 640 | S18: 84 | T18: 21291 | U18: 35226 | V18: 8622 | W18: 18003 | X18: 4305 | Y18: 990 | Z18: 2779 | AA18: 86 | AB18: 524 | AC18: 3960 | AD18: 1259 | AE18: 443 | AF18: 159 | AG18: 1715 | AH18: -289 | AI18: 0 | AJ18: 212 | AK18: 1581 | AL18: 611 | AM18: 596 | AN18: 374 | AO18: 4594 | AP18: 4191 | AQ18: 4148 | AR18: -825 | AS18: 0 | AT18: 514 | AU18: 2439 | AV18: 520 | AW18: 903 | AX18: 525 | AY18: 315 | AZ18: 1888 | BA18: 2 | BB18: 0 | BC18: 317 | BD18: 0 | BE18: -299 | BF18: -809 | BG18: 1360 | BH18: 1371 | BI18: 1031 | BJ18: 480 | BK18: 858 | BL18: 391 | BM18: 1475 | BN18: 188 | BO18: 271 | BP18: 134 | BQ18: 249 | BR18: 622 | BS18: 374 | BT18: 177 | BU18: 420 | BV18: 75 | BW18: 2876 | BX18: 0 | BY18: 2220 | BZ18: 3086 | CA18: -789 | CB18: 1033 | CC18: -167 | CD18: 8646 | CE18: 5364 | CF18: 19330 | CG18: 0 | CH18: 69 | CI18: 0 | CJ18: 343961 | CM18: 6899 | CN18: 17211 | CO18: 33656 | CP18: 65904 | CQ18: 148868 | CR18: 26899 | CS18: 11038 | CT18: 33486 | CU18: 343961 | CW18: 0.02005750652 | CX18: 0.05003764962 | CY18: 0.09784830257 | CZ18: 0.1916031178 | DA18: 0.4328048819 | DB18: 0.07820363355 | DC18: 0.03209084751 | DD18: 0.09735406049 | DF18: 6899 | DG18: 17211 | DH18: 33656 | DI18: 65904 | DJ18: 148868 | DK18: 26899 | DL18: 11038 | DM18: 33486 | DN18: 343961 | DP18: 0.02005750652 | DQ18: 0.05003764962 | DR18: 0.09784830257 | DS18: 0.1916031178 | DT18: 0.4328048819 | DU18: 0.07820363355 | DV18: 0.03209084751 | DW18: 0.09735406049
A19: Fife | B19: 370330 | C19: 29954 | D19: 138423 | E19: 127764 | F19: 34910 | G19: 6898 | H19: 0 | I19: 768 | J19: 4126 | K19: 0 | L19: 542 | M19: 2470 | N19: 7123 | O19: 8450 | P19: 9547 | Q19: 5265 | R19: 939 | S19: 0 | T19: 73633 | U19: 82765 | V19: 20871 | W19: 41576 | X19: 8962 | Y19: 646 | Z19: 7499 | AA19: 54 | AB19: 4304 | AC19: 8122 | AD19: 3497 | AE19: 396 | AF19: 127 | AG19: 2756 | AH19: -803 | AI19: 0 | AJ19: 561 | AK19: 7520 | AL19: 530 | AM19: 2172 | AN19: 887 | AO19: 7255 | AP19: 14554 | AQ19: 4305 | AR19: 124 | AS19: 245 | AT19: 662 | AU19: 3971 | AV19: -351 | AW19: 641 | AX19: 1051 | AY19: 1567 | AZ19: 6172 | BA19: 0 | BB19: 0 | BC19: 0 | BD19: 3730 | BE19: 1605 | BF19: 2189 | BG19: 6682 | BH19: 1288 | BI19: 274 | BJ19: 1093 | BK19: -594 | BL19: 171 | BM19: 4125 | BN19: 238 | BO19: -323 | BP19: 118 | BQ19: 353 | BR19: 898 | BS19: 527 | BT19: 181 | BU19: 149 | BV19: 245 | BW19: 6007 | BX19: 0 | BY19: 9447 | BZ19: 1233 | CA19: 1914 | CB19: 1266 | CC19: 0 | CD19: 27170 | CE19: 4772 | CF19: 32472 | CG19: 0 | CH19: 418 | CI19: 372 | CJ19: 791470 | CM19: 12330 | CN19: 47569 | CO19: 70327 | CP19: 133029 | CQ19: 344821 | CR19: 96791 | CS19: 18219 | CT19: 68384 | CU19: 791470 | CW19: 0.0155786069 | CX19: 0.06010208852 | CY19: 0.08885617901 | CZ19: 0.1680783858 | DA19: 0.4356715984 | DB19: 0.1222926959 | DC19: 0.02301919214 | DD19: 0.08640125336 | DF19: 12330 | DG19: 47569 | DH19: 70327 | DI19: 133029 | DJ19: 344821 | DK19: 96791 | DL19: 18219 | DM19: 68384 | DN19: 791470 | DP19: 0.0155786069 | DQ19: 0.06010208852 | DR19: 0.08885617901 | DS19: 0.1680783858 | DT19: 0.4356715984 | DU19: 0.1222926959 | DV19: 0.02301919214 | DW19: 0.08640125336
A20: Glasgow City | B20: 615070 | C20: 69090 | D20: 199127 | E20: 176793 | F20: 62700 | G20: 10630 | H20: 2680 | I20: 15210 | J20: 11176 | K20: 493 | L20: 2758 | M20: 1410 | N20: 26339 | O20: 20513 | P20: 4390 | Q20: 10000 | R20: 2650 | S20: 16 | T20: 153746 | U20: 137441 | V20: 27007 | W20: 35448 | X20: 4404 | Y20: 19918 | Z20: 11940 | AA20: 0.493 | AB20: 1533 | AC20: 13545 | AD20: 7879 | AE20: 3102 | AF20: 1119 | AG20: 2504 | AH20: 0 | AI20: 0 | AJ20: 1126 | AK20: 8445 | AL20: -852 | AM20: 0 | AN20: 2347 | AO20: 24955 | AP20: 40291 | AQ20: 23678 | AR20: -908 | AS20: 0 | AT20: 640 | AU20: 9893 | AV20: -2022 | AW20: -483 | AX20: 3719 | AY20: 2089 | AZ20: 62219 | BA20: 0 | BB20: -339 | BC20: 0 | BD20: 0 | BE20: 0 | BF20: 0 | BG20: 33775 | BH20: 20651 | BI20: 0 | BJ20: 9065 | BK20: 366 | BL20: 416 | BM20: 4224 | BN20: 179 | BO20: 402 | BP20: 448 | BQ20: 1186 | BR20: 1461 | BS20: 678 | BT20: -226 | BU20: 0 | BV20: 773 | BW20: 12062 | BX20: 0 | BY20: 16776 | BZ20: -2601 | CA20: -1714 | CB20: 0 | CC20: -900 | CD20: 64661 | CE20: 8489 | CF20: 100939 | CG20: 0 | CH20: 500 | CI20: 0 | CJ20: 1481969.493 | CM20: 38230 | CN20: 85359.493 | CO20: 237282 | CP20: 189473 | CQ20: 510206 | CR20: 221138 | CS20: 28306 | CT20: 171975 | CU20: 1481969.493 | CW20: 0.02579675235 | CX20: 0.05759868432 | CY20: 0.1601126077 | CZ20: 0.1278521595 | DA20: 0.3442756429 | DB20: 0.1492189961 | DC20: 0.01910025823 | DD20: 0.1160448989 | DF20: 38230 | DG20: 85359.493 | DH20: 237282 | DI20: 189473 | DJ20: 510206 | DK20: 221138 | DL20: 28306 | DM20: 171975 | DN20: 1481969.493 | DP20: 0.02579675235 | DQ20: 0.05759868432 | DR20: 0.1601126077 | DS20: 0.1278521595 | DT20: 0.3442756429 | DU20: 0.1492189961 | DV20: 0.01910025823 | DW20: 0.1160448989
A21: Highland | B21: 234770 | C21: 19110 | D21: 93619 | E21: 97083 | F21: 36873 | G21: 3929 | H21: 0 | I21: 1045 | J21: 1483 | K21: 0 | L21: 337 | M21: 1542 | N21: 4198 | O21: 2243 | P21: 2593 | Q21: 6300 | R21: 634 | S21: 69 | T21: 37231 | U21: 64898 | V21: 7210 | W21: 26390 | X21: 5709 | Y21: 84 | Z21: 3363 | AA21: 0 | AB21: 5424 | AC21: 8200 | AD21: 3655 | AE21: 334 | AF21: 414 | AG21: 622 | AH21: 0 | AI21: 356 | AJ21: 89 | AK21: 5707 | AL21: 1206 | AM21: 242 | AN21: 672 | AO21: 12869 | AP21: 14136 | AQ21: 2733 | AR21: -953 | AS21: 0 | AT21: 47 | AU21: 2608 | AV21: -763 | AW21: 1828 | AX21: 1516 | AY21: 678 | AZ21: 964 | BA21: 0 | BB21: 0 | BC21: 320 | BD21: 1259 | BE21: 411 | BF21: 680 | BG21: 1881 | BH21: 1544 | BI21: 0 | BJ21: 5925 | BK21: 846 | BL21: 982 | BM21: 990 | BN21: 63 | BO21: -519 | BP21: 105 | BQ21: 791 | BR21: 842 | BS21: 918 | BT21: 497 | BU21: 0 | BV21: -73 | BW21: 6136 | BX21: 0 | BY21: 381 | BZ21: 1117 | CA21: -5444 | CB21: 0 | CC21: -330 | CD21: 26127 | CE21: 4224 | CF21: 37590 | CG21: 1952 | CH21: 82 | CI21: 176 | CJ21: 568000 | CM21: 9038 | CN21: 30059 | CO21: 53231 | CP21: 103383 | CQ21: 244932 | CR21: 50552 | CS21: 12428 | CT21: 64377 | CU21: 568000 | CW21: 0.01591197183 | CX21: 0.05292077465 | CY21: 0.0937165493 | CZ21: 0.1820123239 | DA21: 0.4312183099 | DB21: 0.089 | DC21: 0.02188028169 | DD21: 0.1133397887 | DF21: 9038 | DG21: 30059 | DH21: 53231 | DI21: 103383 | DJ21: 244932 | DK21: 50552 | DL21: 12428 | DM21: 64377 | DN21: 568000 | DP21: =DF21/$DN21 -> 0.01591197183 | DQ21: 0.05292077465 | DR21: 0.0937165493 | DS21: 0.1820123239 | DT21: 0.4312183099 | DU21: 0.089 | DV21: 0.02188028169 | DW21: 0.1133397887
A22: Inverclyde | B22: 79160 | C22: 8433 | D22: 26740 | E22: 29569 | F22: 9233 | G22: 1635 | H22: 7470 | I22: 262 | J22: 0 | K22: 0 | L22: 119 | M22: 155 | N22: 1177 | O22: 2055 | P22: 1625 | Q22: 1387 | R22: 1080 | S22: 1 | T22: 11361 | U22: 25028 | V22: 2370 | W22: 4044 | X22: 548 | Y22: 824 | Z22: 1363 | AA22: 0 | AB22: 392 | AC22: 1179 | AD22: 989 | AE22: 187 | AF22: 93 | AG22: 0 | AH22: 58 | AI22: 0 | AJ22: 165 | AK22: 1296 | AL22: 162 | AM22: 0 | AN22: 202 | AO22: 1763 | AP22: 3942 | AQ22: 2686 | AR22: 219 | AS22: 0 | AT22: 0 | AU22: 1639 | AV22: -78 | AW22: 61 | AX22: 529 | AY22: 92 | AZ22: 5002 | BA22: 0 | BB22: 516 | BC22: 282 | BD22: 0 | BE22: 603 | BF22: 203 | BG22: 748 | BH22: 4409 | BI22: 0 | BJ22: 962 | BK22: 650 | BL22: 125 | BM22: -389 | BN22: 58 | BO22: -129 | BP22: 14 | BQ22: 110 | BR22: 338 | BS22: 50 | BT22: -7 | BU22: 0 | BV22: 51 | BW22: 2704 | BX22: 0 | BY22: 2270 | BZ22: 6267 | CA22: 0 | CB22: 0 | CC22: -355 | CD22: 7901 | CE22: 1599 | CF22: 9228 | CG22: 108 | CH22: 142 | CI22: 0 | CJ22: 195515 | CM22: 2467 | CN22: 7964 | CO22: 24082 | CP22: 38426 | CQ22: 72691 | CR22: 18696 | CS22: 12566 | CT22: 18623 | CU22: 195515 | CW22: 0.0126179577 | CX22: 0.04073344756 | CY22: 0.1231721351 | CZ22: 0.1965373501 | DA22: 0.3717924456 | DB22: 0.09562437665 | DC22: 0.06427128353 | DD22: 0.09525100376 | DF22: 2467 | DG22: 7964 | DH22: 24082 | DI22: 38426 | DJ22: 72691 | DK22: 18696 | DL22: 12566 | DM22: 18623 | DN22: 195515 | DP22: 0.0126179577 | DQ22: 0.04073344756 | DR22: 0.1231721351 | DS22: 0.1965373501 | DT22: 0.3717924456 | DU22: 0.09562437665 | DV22: 0.06427128353 | DW22: 0.09525100376
A23: Midlothian | B23: 88610 | C23: 11218 | D23: 39129 | E23: 34463 | F23: 11025 | G23: 2683 | H23: 0 | I23: 92 | J23: 19 | K23: 0 | L23: 212 | M23: 1481 | N23: 3157 | O23: 493 | P23: 445 | Q23: 1399 | R23: 664 | S23: 15 | T23: 14481 | U23: 20984 | V23: 3455 | W23: 8919 | X23: 735 | Y23: 854 | Z23: 1274 | AA23: 0 | AB23: 908 | AC23: 1299 | AD23: 1011 | AE23: 305 | AF23: 0 | AG23: 971 | AH23: 230 | AI23: 0 | AJ23: 30 | AK23: 480 | AL23: 220 | AM23: 272 | AN23: 301 | AO23: 3328 | AP23: 3722 | AQ23: 1167 | AR23: -215 | AS23: 0 | AT23: 0 | AU23: 684 | AV23: 318 | AW23: 609 | AX23: 631 | AY23: 0 | AZ23: 1038 | BA23: 0 | BB23: 201 | BC23: 12 | BD23: 0 | BE23: 102 | BF23: 628 | BG23: 1148 | BH23: 6159 | BI23: 586 | BJ23: 569 | BK23: -90.44473 | BL23: 176.21194 | BM23: 287 | BN23: 6.10097 | BO23: -6.07114 | BP23: 223.59888 | BQ23: 135 | BR23: 213 | BS23: 191 | BT23: 51 | BU23: 0 | BV23: 22.45895 | BW23: 1506.10884 | BX23: 0 | BY23: 1338.43605 | BZ23: -283 | CA23: 0 | CB23: 895 | CC23: -612 | CD23: 3524 | CE23: 1449 | CF23: 8006 | CG23: 0 | CH23: 37 | CI23: 0 | CJ23: 200980.3998 | CM23: 4582 | CN23: 10333 | CO23: 21624.08766 | CP23: 35862 | CQ23: 87549 | CR23: 24460 | CS23: 3271.3121 | CT23: 13299 | CU23: 200980.3998 | CW23: 0.02279824304 | CX23: 0.05141297366 | CY23: 0.1075930175 | CZ23: 0.1784353103 | DA23: 0.4356096421 | DB23: 0.12170341 | DC23: 0.01627677178 | DD23: 0.06617063164 | DF23: 4582 | DG23: 10333 | DH23: 21624.08766 | DI23: 35862 | DJ23: 87549 | DK23: 24460 | DL23: 3271.3121 | DM23: 13299 | DN23: 200980.3998 | DP23: 0.02279824304 | DQ23: 0.05141297366 | DR23: 0.1075930175 | DS23: 0.1784353103 | DT23: 0.4356096421 | DU23: 0.12170341 | DV23: 0.01627677178 | DW23: 0.06617063164
A24: Moray | B24: 96070 | C24: 4909 | D24: 35474 | E24: 33319 | F24: 13255 | G24: 1144 | H24: 0 | I24: 148 | J24: 235 | K24: 0 | L24: 0 | M24: 148 | N24: 2218 | O24: 1478 | P24: 605 | Q24: 2185 | R24: 365 | S24: 20 | T24: 20596 | U24: 22964 | V24: 3039 | W24: 7650 | X24: 1613 | Y24: 692 | Z24: 1133 | AA24: 0 | AB24: 1718 | AC24: 1075 | AD24: 657 | AE24: 159 | AF24: 0 | AG24: 835 | AH24: -381 | AI24: 57 | AJ24: 0 | AK24: 228 | AL24: 297 | AM24: 11 | AN24: 463 | AO24: 1847 | AP24: 5116 | AQ24: 801 | AR24: 43 | AS24: 183 | AT24: 526 | AU24: 1692 | AV24: 157 | AW24: 320 | AX24: 678 | AY24: 122 | AZ24: 198 | BA24: 0 | BB24: 150 | BC24: 196 | BD24: 201 | BE24: -69 | BF24: 43 | BG24: 1057 | BH24: 5751 | BI24: 0 | BJ24: 345 | BK24: 490 | BL24: 240 | BM24: 700 | BN24: 32 | BO24: -33 | BP24: 40 | BQ24: 128 | BR24: 357 | BS24: 189 | BT24: 0 | BU24: 0 | BV24: 94 | BW24: 2599 | BX24: 0 | BY24: 1095 | BZ24: 0 | CA24: 0 | CB24: 0 | CC24: -156 | CD24: 8097 | CE24: 767 | CF24: 9331 | CG24: 219 | CH24: 87 | CI24: 0 | CJ24: 201942 | CM24: 2301 | CN24: 8893 | CO24: 16161 | CP24: 35504 | CQ24: 86470 | CR24: 29001 | CS24: 5267 | CT24: 18345 | CU24: 201942 | CW24: 0.01139436076 | CX24: 0.04403739688 | CY24: 0.08002792881 | CZ24: 0.1758128572 | DA24: 0.4281922532 | DB24: 0.1436105416 | DC24: 0.02608174624 | DD24: 0.09084291529 | DF24: 2301 | DG24: 8893 | DH24: 16161 | DI24: 35504 | DJ24: 86470 | DK24: 29001 | DL24: 5267 | DM24: 18345 | DN24: 201942 | DP24: 0.01139436076 | DQ24: 0.04403739688 | DR24: 0.08002792881 | DS24: 0.1758128572 | DT24: 0.4281922532 | DU24: 0.1436105416 | DV24: 0.02608174624 | DW24: 0.09084291529
A25: North Ayrshire | B25: 135890 | C25: 15499 | D25: 52688 | E25: 56018 | F25: 13167 | G25: 2683 | H25: 0 | I25: 416 | J25: 918 | K25: 0 | L25: 378 | M25: 818 | N25: 3708 | O25: 3925 | P25: 1937 | Q25: 2383 | R25: 1141 | S25: 46 | T25: 29578 | U25: 44588 | V25: 5281 | W25: 10809 | X25: 2425 | Y25: 1257 | Z25: 3004 | AA25: 0 | AB25: 826 | AC25: 5547 | AD25: 1490 | AE25: 321 | AF25: 664 | AG25: 0 | AH25: 192 | AI25: 0 | AJ25: 274 | AK25: 2063 | AL25: 258 | AM25: 0 | AN25: 439 | AO25: 3663 | AP25: 8061 | AQ25: 1961 | AR25: 358 | AS25: 37 | AT25: 565 | AU25: 1438 | AV25: 155 | AW25: 151 | AX25: 507 | AY25: 0 | AZ25: 5798 | BA25: 3 | BB25: 0 | BC25: 0 | BD25: 192 | BE25: -106 | BF25: -93 | BG25: 98 | BH25: 6403 | BI25: 0 | BJ25: 3354 | BK25: 694 | BL25: 134 | BM25: 1231 | BN25: 117 | BO25: -36 | BP25: 92 | BQ25: 336 | BR25: 292 | BS25: 157 | BT25: 0 | BU25: 3 | BV25: 178 | BW25: 4389 | BX25: 0 | BY25: 1837 | BZ25: 731 | CA25: 0 | CB25: 0 | CC25: -387 | CD25: 9117 | CE25: 1787 | CF25: 15349 | CG25: 0 | CH25: 68 | CI25: 0 | CJ25: 333375 | CM25: 5022 | CN25: 19614 | CO25: 38506 | CP25: 58401 | CQ25: 136700 | CR25: 40706 | CS25: 8492 | CT25: 25934 | CU25: 333375 | CW25: 0.01506411699 | CX25: 0.05883464567 | CY25: 0.1155035621 | CZ25: 0.1751811024 | DA25: 0.4100487439 | DB25: 0.1221027372 | DC25: 0.0254728159 | DD25: 0.07779227597 | DF25: 5022 | DG25: 19614 | DH25: 38506 | DI25: 58401 | DJ25: 136700 | DK25: 40706 | DL25: 8492 | DM25: 25934 | DN25: 333375 | DP25: 0.01506411699 | DQ25: 0.05883464567 | DR25: 0.1155035621 | DS25: 0.1751811024 | DT25: 0.4100487439 | DU25: 0.1221027372 | DV25: 0.0254728159 | DW25: 0.07779227597
A26: North Lanarkshire | B26: 339390 | C26: 32511.08583 | D26: 152539 | E26: 138417 | F26: 29623.70652 | G26: 8887.845039 | H26: 573.542 | I26: 1472.110263 | J26: 1329.061529 | K26: 0 | L26: 30 | M26: 2450 | N26: 8284.76 | O26: 6480 | P26: 3909.789887 | Q26: 5816.60732 | R26: 1073.193 | S26: 0 | T26: 28689.12285 | U26: 81272.75854 | V26: 12277.70217 | W26: 36310.68183 | X26: 10704.44461 | Y26: 1593.74906 | Z26: 11006 | AA26: 0 | AB26: 3886.089594 | AC26: 6634.331147 | AD26: 3387.321851 | AE26: 839.8580945 | AF26: 910.9458162 | AG26: 0 | AH26: 0 | AI26: 0 | AJ26: 600 | AK26: 5600 | AL26: 0 | AM26: 2788.564565 | AN26: 221.9759546 | AO26: 5959.635129 | AP26: 12797.50789 | AQ26: 5689 | AR26: 506.5123162 | AS26: 0 | AT26: 823.5352182 | AU26: 2272.282322 | AV26: 345 | AW26: 355 | AX26: 952 | AY26: 0 | AZ26: 6309.836077 | BA26: 0 | BB26: 1004 | BC26: 317 | BD26: 0 | BE26: 0 | BF26: 0 | BG26: 1260 | BH26: 2020 | BI26: 1785 | BJ26: 3723 | BK26: 69 | BL26: 19 | BM26: 1312 | BN26: 0 | BO26: 14.99002516 | BP26: 10 | BQ26: 334 | BR26: 1087 | BS26: 479 | BT26: 558 | BU26: 0 | BV26: 241.8934691 | BW26: 7767.165326 | BX26: 0 | BY26: 8679 | BZ26: 4132 | CA26: -1913.336 | CB26: 1929 | CC26: -500 | CD26: 18594 | CE26: 4434 | CF26: 33066 | CG26: 0 | CH26: 0 | CI26: 0 | CJ26: 726553.2692 | CM26: 13341.01683 | CN26: 37371.09639 | CO26: 67692.25423 | CP26: 144807.1493 | CQ26: 342601.2357 | CR26: 42898.68741 | CS26: 22232.16533 | CT26: 55609.664 | CU26: 726553.2692 | CW26: 0.0183620629 | CX26: 0.05143614098 | CY26: 0.09316901746 | CZ26: 0.1993069957 | DA26: 0.4715431755 | DB26: 0.05904410486 | DC26: 0.03059949802 | DD26: 0.07653900458 | DF26: 13341.01683 | DG26: 37371.09639 | DH26: 67692.25423 | DI26: 144807.1493 | DJ26: 342601.2357 | DK26: 42898.68741 | DL26: 22232.16533 | DM26: 55609.664 | DN26: 726553.2692 | DP26: 0.0183620629 | DQ26: 0.05143614098 | DR26: 0.09316901746 | DS26: 0.1993069957 | DT26: 0.4715431755 | DU26: 0.05904410486 | DV26: 0.03059949802 | DW26: 0.07653900458
A27: Orkney Islands | B27: 21850 | C27: 2013 | D27: 12731 | E27: 12920 | F27: 1311 | G27: 82 | H27: 1635 | I27: 281 | J27: 448 | K27: 0 | L27: 110 | M27: 0 | N27: 1387 | O27: 304 | P27: 722 | Q27: 783 | R27: 1570 | S27: 3 | T27: 2832 | U27: 8330 | V27: 603 | W27: 4443 | X27: 270 | Y27: 0 | Z27: 42 | AA27: 0 | AB27: 882 | AC27: 1240 | AD27: 231 | AE27: 50 | AF27: 256 | AG27: 139 | AH27: -47 | AI27: 4015 | AJ27: 122 | AK27: 2261 | AL27: 283 | AM27: 0 | AN27: 235 | AO27: 512 | AP27: 1284 | AQ27: 394 | AR27: 90 | AS27: 80 | AT27: 80 | AU27: 630 | AV27: -13 | AW27: 157 | AX27: 744 | AY27: 228 | AZ27: 1874 | BA27: 9 | BB27: 0 | BC27: 0 | BD27: 0 | BE27: 63 | BF27: 87 | BG27: 786 | BH27: 0 | BI27: 131 | BJ27: 395 | BK27: 159 | BL27: 230 | BM27: 0 | BN27: 112 | BO27: 26 | BP27: 84 | BQ27: 111 | BR27: 111 | BS27: 120 | BT27: 20 | BU27: 150 | BV27: 58 | BW27: 5218 | BX27: 0 | BY27: 0 | BZ27: 1061 | CA27: 0 | CB27: 57 | CC27: -372 | CD27: 3440 | CE27: 0 | CF27: 776 | CG27: 0 | CH27: 34 | CI27: 0 | CJ27: 81413 | CM27: 1652 | CN27: 5341 | CO27: 7811 | CP27: 15338 | CQ27: 35848 | CR27: 4306 | CS27: 7182 | CT27: 3935 | CU27: 81413 | CW27: 0.02029159962 | CX27: 0.06560377335 | CY27: 0.09594290838 | CZ27: 0.1883974304 | DA27: 0.4403227986 | DB27: 0.05289081596 | DC27: 0.08821686954 | DD27: 0.04833380418 | DF27: 1652 | DG27: 5341 | DH27: 7811 | DI27: 15338 | DJ27: 35848 | DK27: 4306 | DL27: 7182 | DM27: 3935 | DN27: 81413 | DP27: 0.02029159962 | DQ27: 0.06560377335 | DR27: 0.09594290838 | DS27: 0.1883974304 | DT27: 0.4403227986 | DU27: 0.05289081596 | DV27: 0.08821686954 | DW27: 0.04833380418
A28: Perth & Kinross | B28: 150680 | C28: 11926 | D28: 57963 | E28: 58763 | F28: 16586 | G28: 1849 | H28: 0 | I28: 1184 | J28: 1630 | K28: 0 | L28: 0 | M28: 0 | N28: 4970 | O28: 5531 | P28: 0 | Q28: 3172 | R28: 553 | S28: 0 | T28: 20545 | U28: 36608 | V28: 3001 | W28: 14017 | X28: 1654 | Y28: 106 | Z28: 2118 | AA28: 0 | AB28: 4225 | AC28: 3041 | AD28: 1770 | AE28: 355 | AF28: 2123 | AG28: -216 | AH28: -565 | AI28: 0 | AJ28: 11 | AK28: 2794 | AL28: 85 | AM28: 359 | AN28: 371 | AO28: 4523 | AP28: 8668 | AQ28: 4296 | AR28: -615 | AS28: 0 | AT28: 1264 | AU28: 1874 | AV28: -255 | AW28: 410 | AX28: 1541 | AY28: 67 | AZ28: 3702 | BA28: 0 | BB28: 227 | BC28: 21 | BD28: 0 | BE28: 236 | BF28: 86 | BG28: 1819 | BH28: 2700 | BI28: 1285 | BJ28: 2736 | BK28: 916 | BL28: 137 | BM28: 703 | BN28: 0 | BO28: -182 | BP28: 45 | BQ28: 265 | BR28: 801 | BS28: 344 | BT28: 108 | BU28: 20 | BV28: 112 | BW28: 3320 | BX28: 0 | BY28: 1818 | BZ28: 150 | CA28: -350 | CB28: 1059 | CC28: -529 | CD28: 9256 | CE28: 4509 | CF28: 15879 | CG28: 462 | CH28: 130 | CI28: 0 | CJ28: 330087 | CM28: 5794 | CN28: 21907 | CO28: 36316 | CP28: 61935 | CQ28: 135431 | CR28: 30717 | CS28: 7571 | CT28: 30416 | CU28: 330087 | CW28: 0.01755294816 | CX28: 0.06636735164 | CY28: 0.1100194797 | CZ28: 0.1876323515 | DA28: 0.4102888026 | DB28: 0.0930572849 | DC28: 0.02293637738 | DD28: 0.09214540409 | DF28: 5794 | DG28: 21907 | DH28: 36316 | DI28: 61935 | DJ28: 135431 | DK28: 30717 | DL28: 7571 | DM28: 30416 | DN28: 330087 | DP28: 0.01755294816 | DQ28: 0.06636735164 | DR28: 0.1100194797 | DS28: 0.1876323515 | DT28: 0.4102888026 | DU28: 0.0930572849 | DV28: 0.02293637738 | DW28: 0.09214540409
A29: Renfrewshire | B29: 175930 | C29: 11493 | D29: 55688 | E29: 70910 | F29: 13428 | G29: 2261 | H29: 1449 | I29: 1014 | J29: 2477 | K29: 3479 | L29: 187 | M29: 553 | N29: 4238 | O29: 8215 | P29: 945 | Q29: 2574 | R29: 0 | S29: 0 | T29: 43128 | U29: 38014 | V29: 5888 | W29: 12511 | X29: 1832 | Y29: 650 | Z29: 375 | AA29: 0 | AB29: 1136 | AC29: 4638 | AD29: 2020 | AE29: 778 | AF29: 244 | AG29: 1274 | AH29: 0 | AI29: -973 | AJ29: 332 | AK29: 2847 | AL29: 141 | AM29: 1032 | AN29: 94 | AO29: 4844 | AP29: 8841 | AQ29: 172 | AR29: 177 | AS29: 0 | AT29: 391 | AU29: 4407 | AV29: -234 | AW29: 0 | AX29: 736 | AY29: 1397 | AZ29: 8525 | BA29: 1 | BB29: 352 | BC29: 126 | BD29: 0 | BE29: 513 | BF29: -305 | BG29: 2274 | BH29: 1589 | BI29: 154 | BJ29: -150 | BK29: 845 | BL29: 767 | BM29: 2880 | BN29: 118 | BO29: 26 | BP29: 0 | BQ29: 410 | BR29: 712 | BS29: 131 | BT29: 91 | BU29: 0 | BV29: 21 | BW29: 6356 | BX29: 0 | BY29: 4855 | BZ29: 9859 | CA29: -1187 | CB29: 3500 | CC29: -700 | CD29: 5500 | CE29: 2904 | CF29: 11795 | CG29: 0 | CH29: 0 | CI29: 0 | CJ29: 377565 | CM29: 6254 | CN29: 27798 | CO29: 40916 | CP29: 74933 | CQ29: 130592 | CR29: 51594 | CS29: 23666 | CT29: 21812 | CU29: 377565 | CW29: 0.01656403533 | CX29: 0.07362440904 | CY29: 0.1083680956 | CZ29: 0.1984638407 | DA29: 0.3458795174 | DB29: 0.1366493187 | DC29: 0.06268059804 | DD29: 0.05777018527 | DF29: 6254 | DG29: 27798 | DH29: 40916 | DI29: 74933 | DJ29: 130592 | DK29: 51594 | DL29: 23666 | DM29: 21812 | DN29: 377565 | DP29: 0.01656403533 | DQ29: 0.07362440904 | DR29: 0.1083680956 | DS29: 0.1984638407 | DT29: 0.3458795174 | DU29: 0.1366493187 | DV29: 0.06268059804 | DW29: 0.05777018527
A30: Scottish Borders | B30: 114530 | C30: 8245 | D30: 42933 | E30: 46154 | F30: 14197 | G30: 1329 | H30: 223 | I30: 804 | J30: 2049 | K30: 2 | L30: 169 | M30: 438 | N30: 2519 | O30: 3974 | P30: 4 | Q30: 1472 | R30: 725 | S30: 14 | T30: 16417 | U30: 25449 | V30: 4584 | W30: 19394 | X30: 2407 | Y30: 622 | Z30: 1294 | AA30: 398 | AB30: 4365 | AC30: 4842 | AD30: 1183 | AE30: 156 | AF30: 141 | AG30: 521 | AH30: 203 | AI30: 28 | AJ30: 18 | AK30: 1948 | AL30: 678 | AM30: 251 | AN30: 496 | AO30: 4751 | AP30: 6185 | AQ30: 1618 | AR30: 130 | AS30: 47 | AT30: 254 | AU30: 1562 | AV30: -256 | AW30: -18 | AX30: 896 | AY30: 27 | AZ30: 405 | BA30: 0 | BB30: 318 | BC30: 99 | BD30: 0 | BE30: 652 | BF30: 0 | BG30: 2007 | BH30: 0 | BI30: 315 | BJ30: 974 | BK30: 144 | BL30: 28 | BM30: 491 | BN30: 180 | BO30: -142 | BP30: 26 | BQ30: 228 | BR30: 280 | BS30: 279 | BT30: 97 | BU30: 1013 | BV30: 63 | BW30: 2821 | BX30: 0 | BY30: 0 | BZ30: 0 | CA30: -580 | CB30: 0 | CC30: -20 | CD30: 10632 | CE30: 1508 | CF30: 12299 | CG30: 0 | CH30: 114 | CI30: 0 | CJ30: 260073 | CM30: 5007 | CN30: 18809 | CO30: 24075 | CP30: 47849 | CQ30: 114612 | CR30: 21538 | CS30: 4230 | CT30: 23953 | CU30: 260073 | CW30: 0.01925228686 | CX30: 0.0723220019 | CY30: 0.09257016299 | CZ30: 0.1839829586 | DA30: 0.440691652 | DB30: 0.08281520958 | DC30: 0.01626466415 | DD30: 0.09210106393 | DF30: 5007 | DG30: 18809 | DH30: 24075 | DI30: 47849 | DJ30: 114612 | DK30: 21538 | DL30: 4230 | DM30: 23953 | DN30: 260073 | DP30: 0.01925228686 | DQ30: 0.0723220019 | DR30: 0.09257016299 | DS30: 0.1839829586 | DT30: 0.440691652 | DU30: 0.08281520958 | DV30: 0.01626466415 | DW30: 0.09210106393
A31: Shetland Islands | B31: 23200 | C31: 2892 | D31: 14190 | E31: 15336 | F31: 5811 | G31: 3170 | H31: 539 | I31: 942 | J31: 378 | K31: 387 | L31: 0 | M31: 77 | N31: 595 | O31: 276 | P31: 864 | Q31: 929 | R31: 260 | S31: 1 | T31: 6011 | U31: 12432 | V31: 2003 | W31: 5863 | X31: 2003 | Y31: 447 | Z31: 407 | AA31: 159 | AB31: 991 | AC31: 2043 | AD31: 436 | AE31: 17 | AF31: 43 | AG31: 529 | AH31: 17 | AI31: 13041 | AJ31: 9 | AK31: 3233 | AL31: 76 | AM31: 0 | AN31: 299 | AO31: 868 | AP31: 459 | AQ31: 376 | AR31: 295 | AS31: 0 | AT31: 0 | AU31: 670 | AV31: 252 | AW31: 953 | AX31: 91 | AY31: 74 | AZ31: 1897 | BA31: 0 | BB31: 168 | BC31: 83 | BD31: 190 | BE31: 12 | BF31: 67 | BG31: 428 | BH31: 523 | BI31: 179 | BJ31: -46 | BK31: 141 | BL31: 70 | BM31: 143 | BN31: 99 | BO31: -15 | BP31: 3 | BQ31: 81 | BR31: 132 | BS31: 114 | BT31: 1 | BU31: 229 | BV31: 39 | BW31: 2712 | BX31: 0 | BY31: 1331 | BZ31: -5 | CA31: 0 | CB31: 0 | CC31: -199 | CD31: 802 | CE31: 237 | CF31: 1403 | CG31: 0 | CH31: 18 | CI31: 767 | CJ31: 112348 | CM31: 5803 | CN31: 6418 | CO31: 8037 | CP31: 16804 | CQ31: 59928 | CR31: 7759 | CS31: 4571 | CT31: 3028 | CU31: 112348 | CW31: 0.05165200983 | CX31: 0.05712607256 | CY31: 0.07153665397 | CZ31: 0.1495709759 | DA31: 0.533414035 | DB31: 0.06906219959 | DC31: 0.04068608253 | DD31: 0.02695197066 | DF31: 5803 | DG31: 6418 | DH31: 8037 | DI31: 16804 | DJ31: 59928 | DK31: 7759 | DL31: 4571 | DM31: 3028 | DN31: 112348 | DP31: 0.05165200983 | DQ31: 0.05712607256 | DR31: 0.07153665397 | DS31: 0.1495709759 | DT31: 0.533414035 | DU31: 0.06906219959 | DV31: 0.04068608253 | DW31: 0.02695197066
A32: South Ayrshire | B32: 112470 | C32: 10021 | D32: 41973 | E32: 41964 | F32: 9602 | G32: 3227 | H32: 6 | I32: 499 | J32: 513 | K32: 108 | L32: 684 | M32: 0 | N32: 3371 | O32: 3020 | P32: 587 | Q32: 2233 | R32: 196 | S32: 80 | T32: 16649 | U32: 32810 | V32: 3286 | W32: 16807 | X32: 3101 | Y32: 223 | Z32: 1983 | AA32: 0 | AB32: 921 | AC32: 4586 | AD32: 1803 | AE32: 143 | AF32: 715 | AG32: 107 | AH32: -365 | AI32: 0 | AJ32: 259 | AK32: 1534 | AL32: 198 | AM32: 0 | AN32: 980 | AO32: 3289 | AP32: 5979 | AQ32: 3359 | AR32: -191 | AS32: 125 | AT32: 7 | AU32: 1501 | AV32: 407 | AW32: 56 | AX32: 637 | AY32: 564 | AZ32: 3755 | BA32: 0 | BB32: 259 | BC32: 0 | BD32: 0 | BE32: 499 | BF32: 1221 | BG32: 1629 | BH32: 1934 | BI32: 0 | BJ32: 373 | BK32: 296 | BL32: 296 | BM32: 709 | BN32: 127 | BO32: -208 | BP32: 263 | BQ32: 298 | BR32: 260 | BS32: 140 | BT32: 109 | BU32: 1068 | BV32: 403 | BW32: 3371 | BX32: 0 | BY32: 1110 | BZ32: 1789 | CA32: -13 | CB32: 628 | CC32: -330 | CD32: 5877 | CE32: 2889 | CF32: 12880 | CG32: 0 | CH32: 178 | CI32: 1527 | CJ32: 262894 | CM32: 4974 | CN32: 16154 | CO32: 30272 | CP32: 44203 | CQ32: 112842 | CR32: 23353 | CS32: 7460 | CT32: 23636 | CU32: 262894 | CW32: 0.01892017315 | CX32: 0.06144681887 | CY32: 0.1151490715 | CZ32: 0.1681400108 | DA32: 0.4292300319 | DB32: 0.0888304792 | DC32: 0.02837645591 | DD32: 0.0899069587 | DF32: 4974 | DG32: 16154 | DH32: 30272 | DI32: 44203 | DJ32: 112842 | DK32: 23353 | DL32: 7460 | DM32: 23636 | DN32: 262894 | DP32: 0.01892017315 | DQ32: 0.06144681887 | DR32: 0.1151490715 | DS32: 0.1681400108 | DT32: 0.4292300319 | DU32: 0.0888304792 | DV32: 0.02837645591 | DW32: 0.0899069587
A33: South Lanarkshire | B33: 317100 | C33: 26930 | D33: 130674 | E33: 124867 | F33: 21306 | G33: 3041 | H33: 11057 | I33: 583 | J33: 2451 | K33: 0 | L33: 947 | M33: 737 | N33: 5707 | O33: 7459 | P33: 4141 | Q33: 4411 | R33: 466 | S33: 0 | T33: 32754 | U33: 85837 | V33: 7651 | W33: 24070 | X33: 3149 | Y33: 1358 | Z33: 4545 | AA33: 225 | AB33: 3470 | AC33: 11718 | AD33: 3399 | AE33: 1074 | AF33: 10 | AG33: 4528 | AH33: -973 | AI33: 0 | AJ33: 563 | AK33: 5059 | AL33: 258 | AM33: 1231 | AN33: 0 | AO33: 12096 | AP33: 16638 | AQ33: 6883 | AR33: -1135 | AS33: 0 | AT33: 206 | AU33: 3523 | AV33: -395 | AW33: 1456 | AX33: 373 | AY33: 5 | AZ33: 15096 | BA33: 0 | BB33: 1163 | BC33: 366 | BD33: 0 | BE33: 513 | BF33: 1900 | BG33: 5838 | BH33: 1889 | BI33: 1376 | BJ33: 4535 | BK33: 807 | BL33: 7 | BM33: 441 | BN33: 62 | BO33: -96 | BP33: 145 | BQ33: 641 | BR33: 786 | BS33: 402 | BT33: 700 | BU33: 760 | BV33: -158 | BW33: 7682 | BX33: 0 | BY33: 0 | BZ33: 4499 | CA33: -11459 | CB33: 0 | CC33: 0 | CD33: 57772 | CE33: 7196 | CF33: 17145 | CG33: 0 | CH33: 0 | CI33: 0 | CJ33: 694361 | CM33: 6536 | CN33: 44115 | CO33: 80836 | CP33: 140335 | CQ33: 285438 | CR33: 52006 | CS33: 14441 | CT33: 70654 | CU33: 694361 | CW33: 0.009412971063 | CX33: 0.06353323415 | CY33: 0.1164178288 | CZ33: 0.2021066851 | DA33: 0.4110801154 | DB33: 0.0748976397 | DC33: 0.02079753903 | DD33: 0.1017539868 | DF33: 6536 | DG33: 44115 | DH33: 80836 | DI33: 140335 | DJ33: 285438 | DK33: 52006 | DL33: 14441 | DM33: 70654 | DN33: 694361 | DP33: 0.009412971063 | DQ33: 0.06353323415 | DR33: 0.1164178288 | DS33: 0.2021066851 | DT33: 0.4110801154 | DU33: 0.0748976397 | DV33: 0.02079753903 | DW33: 0.1017539868
A34: Stirling | B34: 93750 | C34: 10346 | D34: 36969 | E34: 39828 | F34: 11811 | G34: 1515 | H34: 780 | I34: 452 | J34: 1017 | K34: 0 | L34: 1 | M34: 363 | N34: 1841 | O34: 2202 | P34: 1141 | Q34: 2310 | R34: 790 | S34: 97 | T34: 11732 | U34: 17904 | V34: 2814 | W34: 8509 | X34: 1099 | Y34: 1648 | Z34: 1934 | AA34: 0 | AB34: 1255 | AC34: 3233 | AD34: 818 | AE34: 222 | AF34: 611 | AG34: 542 | AH34: -698 | AI34: 248 | AJ34: 0 | AK34: 919 | AL34: 442 | AM34: 572 | AN34: 333 | AO34: 4638 | AP34: 4168 | AQ34: 2186 | AR34: 107 | AS34: 0 | AT34: 412 | AU34: 2428 | AV34: -61 | AW34: 86 | AX34: 536 | AY34: 555 | AZ34: 1282 | BA34: 0 | BB34: 0 | BC34: 172 | BD34: 1 | BE34: 0 | BF34: 0 | BG34: 2258 | BH34: 4409 | BI34: 0 | BJ34: 266 | BK34: 385 | BL34: 41 | BM34: 175 | BN34: 147 | BO34: -101 | BP34: 83 | BQ34: 181 | BR34: 451 | BS34: 271 | BT34: 62 | BU34: 0 | BV34: 75 | BW34: 2604 | BX34: 0 | BY34: 81 | BZ34: 19 | CA34: 0 | CB34: 0 | CC34: -1002 | CD34: 5947 | CE34: 2430 | CF34: 13788 | CG34: 0 | CH34: 0 | CI34: 0 | CJ34: 214680 | CM34: 2847 | CN34: 12291 | CO34: 26840 | CP34: 42918 | CQ34: 84645 | CR34: 19682 | CS34: 4294 | CT34: 21163 | CU34: 214680 | CW34: 0.01326159866 | CX34: 0.05725265511 | CY34: 0.1250232905 | CZ34: 0.1999161543 | DA34: 0.3942845165 | DB34: 0.09168064095 | DC34: 0.02000186324 | DD34: 0.09857928079 | DF34: 2847 | DG34: 12291 | DH34: 26840 | DI34: 42918 | DJ34: 84645 | DK34: 19682 | DL34: 4294 | DM34: 21163 | DN34: 214680 | DP34: 0.01326159866 | DQ34: 0.05725265511 | DR34: 0.1250232905 | DS34: 0.1999161543 | DT34: 0.3942845165 | DU34: 0.09168064095 | DV34: 0.02000186324 | DW34: 0.09857928079
A35: West Dunbartonshire | B35: 89860 | C35: 8383 | D35: 32751 | E35: 38570 | F35: 19507 | G35: 945 | H35: 0 | I35: 141 | J35: 588 | K35: 123 | L35: 33 | M35: 198 | N35: 4142 | O35: 2772 | P35: 116 | Q35: 2450 | R35: 1074 | S35: 0 | T35: 17274 | U35: 27661 | V35: 5080 | W35: 8853 | X35: 2041 | Y35: 1123 | Z35: 5 | AA35: 0 | AB35: 350 | AC35: 2495 | AD35: 713 | AE35: 187 | AF35: 142 | AG35: 0 | AH35: 94 | AI35: 0 | AJ35: 171 | AK35: 1397 | AL35: 180 | AM35: 0 | AN35: 366 | AO35: 1908 | AP35: 5498 | AQ35: 1806 | AR35: -906 | AS35: 0 | AT35: 0 | AU35: 1373 | AV35: 62 | AW35: 216 | AX35: 408 | AY35: 7 | AZ35: 2698 | BA35: 0 | BB35: 0 | BC35: 0 | BD35: 0 | BE35: 11 | BF35: 11 | BG35: 456 | BH35: 4876 | BI35: 0 | BJ35: 1777 | BK35: 551 | BL35: 240 | BM35: 282 | BN35: 39 | BO35: -87 | BP35: 0 | BQ35: 165 | BR35: 309 | BS35: 244 | BT35: 0 | BU35: 350 | BV35: 222 | BW35: 3640 | BX35: 0 | BY35: 3100 | BZ35: -4542 | CA35: -2440 | CB35: 0 | CC35: -32 | CD35: 4082 | CE35: 1946 | CF35: 5546 | CG35: 846 | CH35: 166 | CI35: 0 | CJ35: 214753 | CM35: 2454 | CN35: 11271 | CO35: 21472 | CP35: 41020 | CQ35: 100013 | CR35: 24687 | CS35: 3722 | CT35: 10114 | CU35: 214753 | CW35: 0.01142708134 | CX35: 0.05248355087 | CY35: 0.09998463351 | CZ35: 0.1910101372 | DA35: 0.4657117712 | DB35: 0.1149553208 | DC35: 0.01733153902 | DD35: 0.04709596606 | DF35: 2454 | DG35: 11271 | DH35: 21472 | DI35: 41020 | DJ35: 100013 | DK35: 24687 | DL35: 3722 | DM35: 10114 | DN35: 214753 | DP35: 0.01142708134 | DQ35: 0.05248355087 | DR35: 0.09998463351 | DS35: 0.1910101372 | DT35: 0.4657117712 | DU35: 0.1149553208 | DV35: 0.01733153902 | DW35: 0.04709596606
A36: West Lothian | B36: 180130 | C36: 8530 | D36: 81325 | E36: 71841 | F36: 19125 | G36: 1292 | H36: 130 | I36: 98 | J36: 522 | K36: 0 | L36: 426 | M36: 1111 | N36: 4880 | O36: 4825 | P36: 11 | Q36: 1099 | R36: 2057 | S36: 40 | T36: 24796 | U36: 33630 | V36: 4458 | W36: 18156 | X36: 2861 | Y36: 195 | Z36: 2660 | AA36: 0 | AB36: 2301 | AC36: 5604 | AD36: 2992 | AE36: 413 | AF36: 0 | AG36: 443 | AH36: 140 | AI36: 0 | AJ36: 618 | AK36: 1967 | AL36: 339 | AM36: 1826 | AN36: 0 | AO36: 5170 | AP36: 8074 | AQ36: 2560 | AR36: 648 | AS36: 0 | AT36: 808 | AU36: 1351 | AV36: -281 | AW36: -377 | AX36: 1820 | AY36: 369 | AZ36: 8862 | BA36: 0 | BB36: 90 | BC36: 10 | BD36: 0 | BE36: 155 | BF36: 725 | BG36: 2947 | BH36: 3838 | BI36: 392 | BJ36: 3451 | BK36: 8 | BL36: 2 | BM36: 445 | BN36: 66 | BO36: -138 | BP36: 15 | BQ36: 274 | BR36: 433 | BS36: 388 | BT36: 631 | BU36: 122 | BV36: -92 | BW36: 4371 | BX36: 0 | BY36: 269 | BZ36: 6971 | CA36: -3175 | CB36: 120 | CC36: 160 | CD36: 9171 | CE36: 2552 | CF36: 19685 | CG36: 393 | CH36: 262 | CI36: 0 | CJ36: 384256 | CM36: 3214 | CN36: 23637 | CO36: 36497 | CP36: 73070 | CQ36: 167174 | CR36: 38715 | CS36: 12781 | CT36: 29168 | CU36: 384256 | CW36: 0.008364215523 | CX36: 0.06151367838 | CY36: 0.0949809502 | CZ36: 0.1901596852 | DA36: 0.4350589191 | DB36: 0.1007531437 | DC36: 0.03326167971 | DD36: 0.07590772818 | DF36: 3214 | DG36: 23637 | DH36: 36497 | DI36: 73070 | DJ36: 167174 | DK36: 38715 | DL36: 12781 | DM36: 29168 | DN36: 384256 | DP36: 0.008364215523 | DQ36: 0.06151367838 | DR36: 0.0949809502 | DS36: 0.1901596852 | DT36: 0.4350589191 | DU36: 0.1007531437 | DV36: 0.03326167971 | DW36: 0.07590772818
A37: Scotland | B37: 5404700 | C37: =SUM(C5:C36) -> 466993.097 | D37: 2025149.462 | E37: 1972035.959 | F37: 563473.1042 | G37: 101563.318 | H37: 29819.157 | I37: =SUM(I5:I36) -> 39790.28226 | J37: 49251.59126 | K37: 12054 | L37: 10447.53942 | M37: 19341.52534 | N37: 141491.3344 | O37: 117797.7623 | P37: 50180.28983 | Q37: 97180.08583 | R37: 26623.52419 | S37: 822.1458699 | T37: 909475.554 | U37: 1322379.029 | V37: 212150.8315 | W37: 561088.9787 | X37: =SUM(X5:X36) -> 107065.7071 | Y37: =SUM(Y5:Y36) -> 42293.22823 | Z37: =SUM(Z5:Z36) -> 89889.41102 | AA37: =SUM(AA5:AA36) -> 1072.718942 | AB37: =SUM(AB5:AB36) -> 61196.4588 | AC37: =SUM(AC5:AC36) -> 136948.3968 | AD37: =SUM(AD5:AD36) -> 59777.68338 | AE37: =SUM(AE5:AE36) -> 13306.92209 | AF37: =SUM(AF5:AF36) -> 13220.49706 | AG37: =SUM(AG5:AG36) -> 23821.79151 | AH37: =SUM(AH5:AH36) -> -5036.089832 | AI37: =SUM(AI5:AI36) -> 17380 | AJ37: =SUM(AJ5:AJ36) -> 7618.080382 | AK37: =SUM(AK5:AK36) -> 82854.49038 | AL37: =SUM(AL5:AL36) -> 16014.47 | AM37: =SUM(AM5:AM36) -> 14240.83156 | AN37: =SUM(AN5:AN36) -> 18333.99216 | AO37: =SUM(AO5:AO36) -> 171825.7131 | AP37: =SUM(AP5:AP36) -> 277337.8764 | AQ37: =SUM(AQ5:AQ36) -> 106218.3455 | AR37: =SUM(AR5:AR36) -> -3193.636219 | AS37: =SUM(AS5:AS36) -> 1249 | AT37: =SUM(AT5:AT36) -> 10901.58122 | AU37: =SUM(AU5:AU36) -> 82064.63964 | AV37: =SUM(AV5:AV36) -> -1303.127412 | AW37: =SUM(AW5:AW36) -> 15205.65196 | AX37: =SUM(AX5:AX36) -> 29792.80211 | AY37: =SUM(AY5:AY36) -> 12844.35302 | AZ37: =SUM(AZ5:AZ36) -> 184748.7459 | BA37: =SUM(BA5:BA36) -> 86 | BB37: =SUM(BB5:BB36) -> 5837.90503 | BC37: =SUM(BC5:BC36) -> 3923 | BD37: =SUM(BD5:BD36) -> 10860 | BE37: =SUM(BE5:BE36) -> 17705.97662 | BF37: =SUM(BF5:BF36) -> 4330.080753 | BG37: =SUM(BG5:BG36) -> 97992.52462 | BH37: =SUM(BH5:BH36) -> 110371.2896 | BI37: =SUM(BI5:BI36) -> 11164.07802 | BJ37: =SUM(BJ5:BJ36) -> 59936.85568 | BK37: =SUM(BK5:BK36) -> 15886.29159 | BL37: =SUM(BL5:BL36) -> 6869.979003 | BM37: =SUM(BM5:BM36) -> 40048.51756 | BN37: =SUM(BN5:BN36) -> 3423.0863 | BO37: =SUM(BO5:BO36) -> -2700.844047 | BP37: =SUM(BP5:BP36) -> 2647.423441 | BQ37: =SUM(BQ5:BQ36) -> 9602.34 | BR37: =SUM(BR5:BR36) -> 17212.6646 | BS37: =SUM(BS5:BS36) -> 10576.9954 | BT37: =SUM(BT5:BT36) -> 5817 | BU37: =SUM(BU5:BU36) -> 4795.964 | BV37: =SUM(BV5:BV36) -> 4125.194661 | BW37: =SUM(BW5:BW36) -> 133781.0162 | BX37: =SUM(BX5:BX36) -> 0 | BY37: =SUM(BY5:BY36) -> 84868.08005 | BZ37: =SUM(BZ5:BZ36) -> 62311.18357 | CA37: =SUM(CA5:CA36) -> -42599.336 | CB37: =SUM(CB5:CB36) -> 18302 | CC37: =SUM(CC5:CC36) -> -19133 | CD37: =SUM(CD5:CD36) -> 457222.2578 | CE37: =SUM(CE5:CE36) -> 96069 | CF37: =SUM(CF5:CF36) -> 635722.4151 | CG37: =SUM(CG5:CG36) -> 5765 | CH37: =SUM(CH5:CH36) -> 3820 | CI37: =SUM(CI5:CI36) -> 13259 | CJ37: 12206699.05 | CM37: =SUMIFS($C37:$CI37, $C$3:$CI$3, -2) -> 229264.4283 | CN37: =SUMIFS($C37:$CI37, $C$3:$CI$3, -1) -> 666473.9199 | CO37: 1346420.908 | CP37: 2099035.202 | CQ37: 5062761.811 | CR37: 1286794.759 | CS37: 347520.6804 | CT37: 1168427.337 | CU37: 12206699.05 | CW37: 0.0187818531 | CX37: 0.05459902939 | CY37: 0.1103018026 | CZ37: 0.1719576435 | DA37: 0.4147527347 | DB37: 0.1054170955 | DC37: 0.02846966892 | DD37: 0.09572017238 | DF37: 229264.4283 | DG37: 666473.9199 | DH37: 1346420.908 | DI37: 2099035.202 | DJ37: 5062761.811 | DK37: 1286794.759 | DL37: 347520.6804 | DM37: 1168427.337 | DN37: 12206699.05 | DP37: 0.0187818531 | DQ37: 0.05459902939 | DR37: 0.1103018026 | DS37: 0.1719576435 | DT37: 0.4147527347 | DU37: 0.1054170955 | DV37: 0.02846966892 | DW37: 0.09572017238
